Workbook

Sheet INTRO
C1: Cette version sera utilisée par les pays endémiques à la Loase
B2: Formulaire de demande commune de médicaments pour CP v.3.1 (L)
B4: Dans le cadre des efforts mondiaux entrepris pour accélérer l'expansion de la chimioprévention (CP) pour l'élimination de la filariose lymphatique et la lutte contre la schistosomiase et les géohelminthiases, l'Organisation mondiale de la Santé (OMS) facilite l'approvisionnement en albendazole, comprimés de 400 mg (GSK), pour les programmes nationaux d'élimination de la filariose lymphatique et programmes nationaux de lutte contre les géohelminthiases; en diethylcarbamazine, comprimés de 100 mg (Eisai), pour les programmes nationaux d'élimination de la filariose lymphatique; en mebendazole, comprimés de 500 mg (J&J) pour les programmes nationaux de lutte contre les géohelminthiases et en praziquantel, comprimés de 600 mg (Merck KGaA), destinés aux enfants d'âge scolaire, pour les programmes nationaux de lutte contre la schistosomiase. L'OMS contribue également à l'approvisionnement en ivermectine, comprimés de 3 mg (Merck), pour les programmes de donation pour l'onchocercose et la filariose lymphatique. Cet outil Excel est concu pour aider les pays à quantifier le nombre de comprimés nécessaires, selon le traitement de chimioprévention requis, pour atteindre les objectifs de couverture de traitement de populations et districts pour l'année de la demande de médicaments. Le résultat de cet outil est une demande commune de médicaments pour la chimioprévention des maladies tropicales négligées, qui peut être imprimée, signée et soumise à l'OMS pour la demande de ces médicaments.
B6: Structure de l'application (feuilles de travail) :
B8: INTRO | C8: Cette feuille contient des instructions pour compléter le formulaire de demande de médicaments pour la chimioprévention et des informations sur le statut de la chimioprévention pour les maladies d'endémie du pays.
B9: COUNTRY_INFO | C9: Cette feuille contient des informations sur la structure administrative du pays, la population par groupe d'âge, le statut d'endémicité pour chaque maladie, la population devant être traitée par chimioprévention et les interventions prévues.
B10: DEC, ALB_MBD, PZQ et IVM | C10: Ces feuilles contiennent des informations sur l'endémicité des districts ciblés pour le traitement aux médicaments spécifiques à la chimioprévention, les plans de traitement, et le nombre de comprimés requis et demandés.
B11: SUMMARY | C11: Cette feuille inclut un résumé du nombre de comprimés demandés, des informations concernant le stock et les dates de soumission de la demande de médicaments. Avant de générer le rapport (run macros), veuillez sélectionner le médicament pour lequel le rapport est nécessaire. Veuillez suivre la même règle pour voir le nombre de personnes à traiter pour les maladies spécifiques. Cette feuille doit être imprimée et soumise en tant que "Formulaire de demande commune de médicaments pour chimioprévention" (voir les instructions pour la soumission du formulaire sous la feuille SUMMARY).
B13: Instructions pour la saisie des données
B15: La plupart des cellules des feuilles de travail mentionnées ci-dessus contiennent des formules calculées automatiquement en fonction du protocole de traitement recommandé par l'OMS pour chaque maladie. Voir : http://www.who.int/neglected_diseases/preventive_chemotherapy/pct_manual/en/index.html
B17: Veuillez entrer vos données dans les cellules en fonction de leur code de couleur :
C19: Blanc - la cellule n'est pas protégée. Veuillez entrer la valeur de l'indicateur demandé.
C21: Jaune - la cellule est protégée et inclut le nom de l'indicateur. Aucune entrée de données requise.
C23: Orange - la cellule n'est pas protégée et contient un menu déroulant. Veuillez sélectionner la valeur dans le menu déroulant.
C26: Vert - la cellule n'est pas protégée et contient des formules. Veuillez changer la valeur indiquée uniquement si vos données sont différentes de celles calculées automatiquement.
C29: Bleu - la cellule est protégée et contient des formules. Aucune entrée de données requise.
B31: Données pays
B33: PAYS | E33: GUINEE EQUATORIALE
B35: Année de la demande de médicaments | E35: 2020
B37: Le pays est-il endémique à la filariose lymphatique (FL) ? | E37: Endémique
B39: Le pays est-il endémique à l'onchocercose (ONCHO) ? | E39: Endémique
B41: Le pays est-il endémique aux géohelminthiases (STH) ? | E41: Endémique
B43: Le pays est-il endémique à la schistosomiase (SCH) ? | E43: Endémique
B45: Combien d'unités administratives compte le pays ? | E45: 18
B47: Si les données démographiques par groupe d'âge ne sont pas disponibles au second niveau administratif, veuillez entrer la proportion (%) de population, par groupe d'âge, du pays. Si les données sont disponibles, veuillez laisser les cellules vierges.
B48: 1-4 ans | C48: Enfants d'âge pré-scolaire (EAPréS) | E48: 0.1076
B49: 5-14 ans | C49: Enfants d'âge scolaire (EAS) | E49: 0.2242261923
B50: 15 ans et plus | C50: Adultes | E50: 0.6257519851

Sheet COUNTRY_INFO
A1: INFORMATIONS PAYS
A2: Struture administrative, population par groupe d'âge, statut d'endémicité et interventions planifiées | V2: 1.0424
A4: TOTAL | D4: =SUM(D$9:D$1000) -> 1168631 | E4: =SUM(E$9:E$1000) -> 125745 | F4: =SUM(F$9:F$1000) -> 262038 | G4: =SUM(G$9:G$1000) -> 731272 | M4: =SUM(M$9:M$1000) -> 948512 | N4: =SUM(N$9:N$1000) -> 0 | O4: =SUM(O$9:O$1000) -> 387783 | P4: =SUM(P$9:P$1000) -> 137140.8
A6: Structure administrative du pays | D6: Population | H6: Endémicité | M6: Population nécessitant la CP | Q6: Nombre de tournées de traitement prévues pour l'année | U6: Enquêtes épidémiologiques planifiées pour l’année
A7: Pays | B7: Région/Département | C7: District | D7: Total | E7: EAPréS | F7: EAS | G7: Adultes | H7: FL | I7: Oncho | J7: STH | K7: SCH | L7: Loa | M7: FL | N7: Oncho | O7: STH | P7: SCH | Q7: FL | R7: Oncho | S7: STH | T7: SCH | U7: FL | V7: Oncho | W7: STH | X7: SCH | Y7: IU_ID | Z7: IU_NAME
A9: =IF(INTRO!$E$33<>0,INTRO!$E$33, " ") -> GUINEE EQUATORIALE | B9: Annobon | C9: Annonbon | D9: 8115 | E9: =IF(INTRO!$E$48="","",ROUND($D9*INTRO!$E$48,0)) -> 873 | F9: =IF(INTRO!$E$49="","",ROUND($D9*INTRO!$E$49,0)) -> 1820 | G9: =IF(INTRO!$E$50="","",ROUND($D9*INTRO!$E$50,0)) -> 5078 | H9: 0 | I9: 4 | J9: 3 | K9: 0 | L9: 0 | M9: =IF(INTRO!$E$37="Endémique",IF($H9>0,IF($H9=4,"Inconnu",IF($H9=99,"Interrompu",$D9)),0),"Non requis") -> 0 | N9: =IF(INTRO!$E$39="Endémique", IF($I9>0, IF($I9=4,"Inconnu",IF($I9=99,"Interrompu",$D9)), 0),"Non requis") -> Inconnu | O9: =IF(INTRO!$E$41="Endémique", IF(AND($J9>1,$J9<5), IF($J9=4, "Inconnu", E9+F9), 0),"Non requis") -> 2693 | P9: =IF(INTRO!$E$43="Endémique", IF(AND($K9>0,$K9<5), IF($K9=4,"Inconnu", IF($K9=1, $F9*0.33, IF($K9=2, $F9*0.5+$G9*0.2, SUM(F9:G9)))), 0),"Non requis") -> 0 | Q9: 0 | R9: 0 | S9: 2 | T9: 0 | Y9: 16411 | Z9: Annonbon
A10: =IF(INTRO!$E$33<>0,INTRO!$E$33, " ") -> GUINEE EQUATORIALE | B10: Bioko Norte | C10: Baney | D10: 30782 | E10: =IF(INTRO!$E$48="","",ROUND($D10*INTRO!$E$48,0)) -> 3312 | F10: =IF(INTRO!$E$49="","",ROUND($D10*INTRO!$E$49,0)) -> 6902 | G10: =IF(INTRO!$E$50="","",ROUND($D10*INTRO!$E$50,0)) -> 19262 | H10: 1 | I10: 99 | J10: 3 | K10: 1 | L10: 1 | M10: =IF(INTRO!$E$37="Endémique",IF($H10>0,IF($H10=4,"Inconnu",IF($H10=99,"Interrompu",$D10)),0),"Non requis") -> 30782 | N10: =IF(INTRO!$E$39="Endémique", IF($I10>0, IF($I10=4,"Inconnu",IF($I10=99,"Interrompu",$D10)), 0),"Non requis") -> Interrompu | O10: =IF(INTRO!$E$41="Endémique", IF(AND($J10>1,$J10<5), IF($J10=4, "Inconnu", E10+F10), 0),"Non requis") -> 10214 | P10: =IF(INTRO!$E$43="Endémique", IF(AND($K10>0,$K10<5), IF($K10=4,"Inconnu", IF($K10=1, $F10*0.33, IF($K10=2, $F10*0.5+$G10*0.2, SUM(F10:G10)))), 0),"Non requis") -> 2277.66 | Q10: 1 | R10: 0 | S10: 2 | T10: 0 | Y10: 16412 | Z10: Baney
A11: =IF(INTRO!$E$33<>0,INTRO!$E$33, " ") -> GUINEE EQUATORIALE | B11: Bioko Norte | C11: Malabo | D11: 185413 | E11: =IF(INTRO!$E$48="","",ROUND($D11*INTRO!$E$48,0)) -> 19950 | F11: =IF(INTRO!$E$49="","",ROUND($D11*INTRO!$E$49,0)) -> 41574 | G11: =IF(INTRO!$E$50="","",ROUND($D11*INTRO!$E$50,0)) -> 116023 | H11: 0 | I11: 99 | J11: 3 | K11: 2 | L11: 1 | M11: =IF(INTRO!$E$37="Endémique",IF($H11>0,IF($H11=4,"Inconnu",IF($H11=99,"Interrompu",$D11)),0),"Non requis") -> 0 | N11: =IF(INTRO!$E$39="Endémique", IF($I11>0, IF($I11=4,"Inconnu",IF($I11=99,"Interrompu",$D11)), 0),"Non requis") -> Interrompu | O11: =IF(INTRO!$E$41="Endémique", IF(AND($J11>1,$J11<5), IF($J11=4, "Inconnu", E11+F11), 0),"Non requis") -> 61524 | P11: =IF(INTRO!$E$43="Endémique", IF(AND($K11>0,$K11<5), IF($K11=4,"Inconnu", IF($K11=1, $F11*0.33, IF($K11=2, $F11*0.5+$G11*0.2, SUM(F11:G11)))), 0),"Non requis") -> 43991.6 | Q11: 0 | R11: 0 | S11: 2 | T11: 0 | Y11: 16413 | Z11: Malabo
A12: =IF(INTRO!$E$33<>0,INTRO!$E$33, " ") -> GUINEE EQUATORIALE | B12: Bioko Sur | C12: Luba | D12: 26591 | E12: =IF(INTRO!$E$48="","",ROUND($D12*INTRO!$E$48,0)) -> 2861 | F12: =IF(INTRO!$E$49="","",ROUND($D12*INTRO!$E$49,0)) -> 5962 | G12: =IF(INTRO!$E$50="","",ROUND($D12*INTRO!$E$50,0)) -> 16639 | H12: 0 | I12: 99 | J12: 2 | K12: 0 | L12: 1 | M12: =IF(INTRO!$E$37="Endémique",IF($H12>0,IF($H12=4,"Inconnu",IF($H12=99,"Interrompu",$D12)),0),"Non requis") -> 0 | N12: =IF(INTRO!$E$39="Endémique", IF($I12>0, IF($I12=4,"Inconnu",IF($I12=99,"Interrompu",$D12)), 0),"Non requis") -> Interrompu | O12: =IF(INTRO!$E$41="Endémique", IF(AND($J12>1,$J12<5), IF($J12=4, "Inconnu", E12+F12), 0),"Non requis") -> 8823 | P12: =IF(INTRO!$E$43="Endémique", IF(AND($K12>0,$K12<5), IF($K12=4,"Inconnu", IF($K12=1, $F12*0.33, IF($K12=2, $F12*0.5+$G12*0.2, SUM(F12:G12)))), 0),"Non requis") -> 0 | Q12: 0 | R12: 0 | S12: 1 | T12: 0 | Y12: 16414 | Z12: Luba
A13: =IF(INTRO!$E$33<>0,INTRO!$E$33, " ") -> GUINEE EQUATORIALE | B13: Bioko Sur | C13: Riaba | D13: 9573 | E13: =IF(INTRO!$E$48="","",ROUND($D13*INTRO!$E$48,0)) -> 1030 | F13: =IF(INTRO!$E$49="","",ROUND($D13*INTRO!$E$49,0)) -> 2147 | G13: =IF(INTRO!$E$50="","",ROUND($D13*INTRO!$E$50,0)) -> 5990 | H13: 1 | I13: 99 | J13: 3 | K13: 0 | L13: 1 | M13: =IF(INTRO!$E$37="Endémique",IF($H13>0,IF($H13=4,"Inconnu",IF($H13=99,"Interrompu",$D13)),0),"Non requis") -> 9573 | N13: =IF(INTRO!$E$39="Endémique", IF($I13>0, IF($I13=4,"Inconnu",IF($I13=99,"Interrompu",$D13)), 0),"Non requis") -> Interrompu | O13: =IF(INTRO!$E$41="Endémique", IF(AND($J13>1,$J13<5), IF($J13=4, "Inconnu", E13+F13), 0),"Non requis") -> 3177 | P13: =IF(INTRO!$E$43="Endémique", IF(AND($K13>0,$K13<5), IF($K13=4,"Inconnu", IF($K13=1, $F13*0.33, IF($K13=2, $F13*0.5+$G13*0.2, SUM(F13:G13)))), 0),"Non requis") -> 0 | Q13: 1 | R13: 0 | S13: 2 | T13: 0 | Y13: 16415 | Z13: Riaba
A14: =IF(INTRO!$E$33<>0,INTRO!$E$33, " ") -> GUINEE EQUATORIALE | B14: Centro Sur | C14: Acurenam | D14: 33466 | E14: =IF(INTRO!$E$48="","",ROUND($D14*INTRO!$E$48,0)) -> 3601 | F14: =IF(INTRO!$E$49="","",ROUND($D14*INTRO!$E$49,0)) -> 7504 | G14: =IF(INTRO!$E$50="","",ROUND($D14*INTRO!$E$50,0)) -> 20941 | H14: 1 | I14: 0 | J14: 3 | K14: 1 | L14: 1 | M14: =IF(INTRO!$E$37="Endémique",IF($H14>0,IF($H14=4,"Inconnu",IF($H14=99,"Interrompu",$D14)),0),"Non requis") -> 33466 | N14: =IF(INTRO!$E$39="Endémique", IF($I14>0, IF($I14=4,"Inconnu",IF($I14=99,"Interrompu",$D14)), 0),"Non requis") -> 0 | O14: =IF(INTRO!$E$41="Endémique", IF(AND($J14>1,$J14<5), IF($J14=4, "Inconnu", E14+F14), 0),"Non requis") -> 11105 | P14: =IF(INTRO!$E$43="Endémique", IF(AND($K14>0,$K14<5), IF($K14=4,"Inconnu", IF($K14=1, $F14*0.33, IF($K14=2, $F14*0.5+$G14*0.2, SUM(F14:G14)))), 0),"Non requis") -> 2476.32 | Q14: 1 | R14: 0 | S14: 2 | T14: 0 | Y14: 16416 | Z14: Acurenam
A15: =IF(INTRO!$E$33<>0,INTRO!$E$33, " ") -> GUINEE EQUATORIALE | B15: Centro Sur | C15: Evinayong | D15: 61441 | E15: =IF(INTRO!$E$48="","",ROUND($D15*INTRO!$E$48,0)) -> 6611 | F15: =IF(INTRO!$E$49="","",ROUND($D15*INTRO!$E$49,0)) -> 13777 | G15: =IF(INTRO!$E$50="","",ROUND($D15*INTRO!$E$50,0)) -> 38447 | H15: 1 | I15: 0 | J15: 3 | K15: 1 | L15: 1 | M15: =IF(INTRO!$E$37="Endémique",IF($H15>0,IF($H15=4,"Inconnu",IF($H15=99,"Interrompu",$D15)),0),"Non requis") -> 61441 | N15: =IF(INTRO!$E$39="Endémique", IF($I15>0, IF($I15=4,"Inconnu",IF($I15=99,"Interrompu",$D15)), 0),"Non requis") -> 0 | O15: =IF(INTRO!$E$41="Endémique", IF(AND($J15>1,$J15<5), IF($J15=4, "Inconnu", E15+F15), 0),"Non requis") -> 20388 | P15: =IF(INTRO!$E$43="Endémique", IF(AND($K15>0,$K15<5), IF($K15=4,"Inconnu", IF($K15=1, $F15*0.33, IF($K15=2, $F15*0.5+$G15*0.2, SUM(F15:G15)))), 0),"Non requis") -> 4546.41 | Q15: 1 | R15: 0 | S15: 2 | T15: 0 | Y15: 16417 | Z15: Evinayong
A16: =IF(INTRO!$E$33<>0,INTRO!$E$33, " ") -> GUINEE EQUATORIALE | B16: Centro Sur | C16: Niefang | D16: 78714 | E16: =IF(INTRO!$E$48="","",ROUND($D16*INTRO!$E$48,0)) -> 8470 | F16: =IF(INTRO!$E$49="","",ROUND($D16*INTRO!$E$49,0)) -> 17650 | G16: =IF(INTRO!$E$50="","",ROUND($D16*INTRO!$E$50,0)) -> 49255 | H16: 1 | I16: 0 | J16: 3 | K16: 1 | L16: 1 | M16: =IF(INTRO!$E$37="Endémique",IF($H16>0,IF($H16=4,"Inconnu",IF($H16=99,"Interrompu",$D16)),0),"Non requis") -> 78714 | N16: =IF(INTRO!$E$39="Endémique", IF($I16>0, IF($I16=4,"Inconnu",IF($I16=99,"Interrompu",$D16)), 0),"Non requis") -> 0 | O16: =IF(INTRO!$E$41="Endémique", IF(AND($J16>1,$J16<5), IF($J16=4, "Inconnu", E16+F16), 0),"Non requis") -> 26120 | P16: =IF(INTRO!$E$43="Endémique", IF(AND($K16>0,$K16<5), IF($K16=4,"Inconnu", IF($K16=1, $F16*0.33, IF($K16=2, $F16*0.5+$G16*0.2, SUM(F16:G16)))), 0),"Non requis") -> 5824.5 | Q16: 1 | R16: 0 | S16: 2 | T16: 0 | Y16: 16418 | Z16: Niefang
A17: =IF(INTRO!$E$33<>0,INTRO!$E$33, " ") -> GUINEE EQUATORIALE | B17: Kientem | C17: Ebebiyin | D17: 131083 | E17: =IF(INTRO!$E$48="","",ROUND($D17*INTRO!$E$48,0)) -> 14105 | F17: =IF(INTRO!$E$49="","",ROUND($D17*INTRO!$E$49,0)) -> 29392 | G17: =IF(INTRO!$E$50="","",ROUND($D17*INTRO!$E$50,0)) -> 82025 | H17: 1 | I17: 0 | J17: 3 | K17: 1 | L17: 1 | M17: =IF(INTRO!$E$37="Endémique",IF($H17>0,IF($H17=4,"Inconnu",IF($H17=99,"Interrompu",$D17)),0),"Non requis") -> 131083 | N17: =IF(INTRO!$E$39="Endémique", IF($I17>0, IF($I17=4,"Inconnu",IF($I17=99,"Interrompu",$D17)), 0),"Non requis") -> 0 | O17: =IF(INTRO!$E$41="Endémique", IF(AND($J17>1,$J17<5), IF($J17=4, "Inconnu", E17+F17), 0),"Non requis") -> 43497 | P17: =IF(INTRO!$E$43="Endémique", IF(AND($K17>0,$K17<5), IF($K17=4,"Inconnu", IF($K17=1, $F17*0.33, IF($K17=2, $F17*0.5+$G17*0.2, SUM(F17:G17)))), 0),"Non requis") -> 9699.36 | Q17: 1 | R17: 0 | S17: 2 | T17: 0 | Y17: 16419 | Z17: Ebebiyin
A18: =IF(INTRO!$E$33<>0,INTRO!$E$33, " ") -> GUINEE EQUATORIALE | B18: Kientem | C18: Micomiseng | D18: 86185 | E18: =IF(INTRO!$E$48="","",ROUND($D18*INTRO!$E$48,0)) -> 9274 | F18: =IF(INTRO!$E$49="","",ROUND($D18*INTRO!$E$49,0)) -> 19325 | G18: =IF(INTRO!$E$50="","",ROUND($D18*INTRO!$E$50,0)) -> 53930 | H18: 1 | I18: 0 | J18: 3 | K18: 1 | L18: 1 | M18: =IF(INTRO!$E$37="Endémique",IF($H18>0,IF($H18=4,"Inconnu",IF($H18=99,"Interrompu",$D18)),0),"Non requis") -> 86185 | N18: =IF(INTRO!$E$39="Endémique", IF($I18>0, IF($I18=4,"Inconnu",IF($I18=99,"Interrompu",$D18)), 0),"Non requis") -> 0 | O18: =IF(INTRO!$E$41="Endémique", IF(AND($J18>1,$J18<5), IF($J18=4, "Inconnu", E18+F18), 0),"Non requis") -> 28599 | P18: =IF(INTRO!$E$43="Endémique", IF(AND($K18>0,$K18<5), IF($K18=4,"Inconnu", IF($K18=1, $F18*0.33, IF($K18=2, $F18*0.5+$G18*0.2, SUM(F18:G18)))), 0),"Non requis") -> 6377.25 | Q18: 1 | R18: 0 | S18: 2 | T18: 0 | Y18: 16420 | Z18: Micomiseng
A19: =IF(INTRO!$E$33<>0,INTRO!$E$33, " ") -> GUINEE EQUATORIALE | B19: Kientem | C19: Nsoknsomo | D19: 49688 | E19: =IF(INTRO!$E$48="","",ROUND($D19*INTRO!$E$48,0)) -> 5346 | F19: =IF(INTRO!$E$49="","",ROUND($D19*INTRO!$E$49,0)) -> 11141 | G19: =IF(INTRO!$E$50="","",ROUND($D19*INTRO!$E$50,0)) -> 31092 | H19: 1 | I19: 0 | J19: 3 | K19: 1 | L19: 1 | M19: =IF(INTRO!$E$37="Endémique",IF($H19>0,IF($H19=4,"Inconnu",IF($H19=99,"Interrompu",$D19)),0),"Non requis") -> 49688 | N19: =IF(INTRO!$E$39="Endémique", IF($I19>0, IF($I19=4,"Inconnu",IF($I19=99,"Interrompu",$D19)), 0),"Non requis") -> 0 | O19: =IF(INTRO!$E$41="Endémique", IF(AND($J19>1,$J19<5), IF($J19=4, "Inconnu", E19+F19), 0),"Non requis") -> 16487 | P19: =IF(INTRO!$E$43="Endémique", IF(AND($K19>0,$K19<5), IF($K19=4,"Inconnu", IF($K19=1, $F19*0.33, IF($K19=2, $F19*0.5+$G19*0.2, SUM(F19:G19)))), 0),"Non requis") -> 3676.53 | Q19: 1 | R19: 0 | S19: 2 | T19: 0 | Y19: 16421 | Z19: Nsoknsomo
A20: =IF(INTRO!$E$33<>0,INTRO!$E$33, " ") -> GUINEE EQUATORIALE | B20: Litoral | C20: Bata | D20: 205458 | E20: =IF(INTRO!$E$48="","",ROUND($D20*INTRO!$E$48,0)) -> 22107 | F20: =IF(INTRO!$E$49="","",ROUND($D20*INTRO!$E$49,0)) -> 46069 | G20: =IF(INTRO!$E$50="","",ROUND($D20*INTRO!$E$50,0)) -> 128566 | H20: 1 | I20: 0 | J20: 3 | K20: 2 | L20: 1 | M20: =IF(INTRO!$E$37="Endémique",IF($H20>0,IF($H20=4,"Inconnu",IF($H20=99,"Interrompu",$D20)),0),"Non requis") -> 205458 | N20: =IF(INTRO!$E$39="Endémique", IF($I20>0, IF($I20=4,"Inconnu",IF($I20=99,"Interrompu",$D20)), 0),"Non requis") -> 0 | O20: =IF(INTRO!$E$41="Endémique", IF(AND($J20>1,$J20<5), IF($J20=4, "Inconnu", E20+F20), 0),"Non requis") -> 68176 | P20: =IF(INTRO!$E$43="Endémique", IF(AND($K20>0,$K20<5), IF($K20=4,"Inconnu", IF($K20=1, $F20*0.33, IF($K20=2, $F20*0.5+$G20*0.2, SUM(F20:G20)))), 0),"Non requis") -> 48747.7 | Q20: 1 | R20: 0 | S20: 2 | T20: 0 | Y20: 16422 | Z20: Bata
A21: =IF(INTRO!$E$33<>0,INTRO!$E$33, " ") -> GUINEE EQUATORIALE | B21: Litoral | C21: Kogo | D21: 42029 | E21: =IF(INTRO!$E$48="","",ROUND($D21*INTRO!$E$48,0)) -> 4522 | F21: =IF(INTRO!$E$49="","",ROUND($D21*INTRO!$E$49,0)) -> 9424 | G21: =IF(INTRO!$E$50="","",ROUND($D21*INTRO!$E$50,0)) -> 26300 | H21: 1 | I21: 0 | J21: 3 | K21: 1 | L21: 1 | M21: =IF(INTRO!$E$37="Endémique",IF($H21>0,IF($H21=4,"Inconnu",IF($H21=99,"Interrompu",$D21)),0),"Non requis") -> 42029 | N21: =IF(INTRO!$E$39="Endémique", IF($I21>0, IF($I21=4,"Inconnu",IF($I21=99,"Interrompu",$D21)), 0),"Non requis") -> 0 | O21: =IF(INTRO!$E$41="Endémique", IF(AND($J21>1,$J21<5), IF($J21=4, "Inconnu", E21+F21), 0),"Non requis") -> 13946 | P21: =IF(INTRO!$E$43="Endémique", IF(AND($K21>0,$K21<5), IF($K21=4,"Inconnu", IF($K21=1, $F21*0.33, IF($K21=2, $F21*0.5+$G21*0.2, SUM(F21:G21)))), 0),"Non requis") -> 3109.92 | Q21: 1 | R21: 0 | S21: 2 | T21: 0 | Y21: 16423 | Z21: Kogo
A22: =IF(INTRO!$E$33<>0,INTRO!$E$33, " ") -> GUINEE EQUATORIALE | B22: Litoral | C22: Mbini | D22: 40380 | E22: =IF(INTRO!$E$48="","",ROUND($D22*INTRO!$E$48,0)) -> 4345 | F22: =IF(INTRO!$E$49="","",ROUND($D22*INTRO!$E$49,0)) -> 9054 | G22: =IF(INTRO!$E$50="","",ROUND($D22*INTRO!$E$50,0)) -> 25268 | H22: 1 | I22: 0 | J22: 3 | K22: 1 | L22: 1 | M22: =IF(INTRO!$E$37="Endémique",IF($H22>0,IF($H22=4,"Inconnu",IF($H22=99,"Interrompu",$D22)),0),"Non requis") -> 40380 | N22: =IF(INTRO!$E$39="Endémique", IF($I22>0, IF($I22=4,"Inconnu",IF($I22=99,"Interrompu",$D22)), 0),"Non requis") -> 0 | O22: =IF(INTRO!$E$41="Endémique", IF(AND($J22>1,$J22<5), IF($J22=4, "Inconnu", E22+F22), 0),"Non requis") -> 13399 | P22: =IF(INTRO!$E$43="Endémique", IF(AND($K22>0,$K22<5), IF($K22=4,"Inconnu", IF($K22=1, $F22*0.33, IF($K22=2, $F22*0.5+$G22*0.2, SUM(F22:G22)))), 0),"Non requis") -> 2987.82 | Q22: 1 | R22: 0 | S22: 2 | T22: 0 | Y22: 16424 | Z22: Mbini
A23: =IF(INTRO!$E$33<>0,INTRO!$E$33, " ") -> GUINEE EQUATORIALE | B23: Welenzas | C23: Akonibe | D23: 26084 | E23: =IF(INTRO!$E$48="","",ROUND($D23*INTRO!$E$48,0)) -> 2807 | F23: =IF(INTRO!$E$49="","",ROUND($D23*INTRO!$E$49,0)) -> 5849 | G23: =IF(INTRO!$E$50="","",ROUND($D23*INTRO!$E$50,0)) -> 16322 | H23: 1 | I23: 0 | J23: 3 | K23: 1 | L23: 1 | M23: =IF(INTRO!$E$37="Endémique",IF($H23>0,IF($H23=4,"Inconnu",IF($H23=99,"Interrompu",$D23)),0),"Non requis") -> 26084 | N23: =IF(INTRO!$E$39="Endémique", IF($I23>0, IF($I23=4,"Inconnu",IF($I23=99,"Interrompu",$D23)), 0),"Non requis") -> 0 | O23: =IF(INTRO!$E$41="Endémique", IF(AND($J23>1,$J23<5), IF($J23=4, "Inconnu", E23+F23), 0),"Non requis") -> 8656 | P23: =IF(INTRO!$E$43="Endémique", IF(AND($K23>0,$K23<5), IF($K23=4,"Inconnu", IF($K23=1, $F23*0.33, IF($K23=2, $F23*0.5+$G23*0.2, SUM(F23:G23)))), 0),"Non requis") -> 1930.17 | Q23: 1 | R23: 0 | S23: 2 | T23: 0 | Y23: 16425 | Z23: Akonibe
A24: =IF(INTRO!$E$33<>0,INTRO!$E$33, " ") -> GUINEE EQUATORIALE | B24: Welenzas | C24: Anisok | D24: 65064 | E24: =IF(INTRO!$E$48="","",ROUND($D24*INTRO!$E$48,0)) -> 7001 | F24: =IF(INTRO!$E$49="","",ROUND($D24*INTRO!$E$49,0)) -> 14589 | G24: =IF(INTRO!$E$50="","",ROUND($D24*INTRO!$E$50,0)) -> 40714 | H24: 1 | I24: 0 | J24: 3 | K24: 0 | L24: 1 | M24: =IF(INTRO!$E$37="Endémique",IF($H24>0,IF($H24=4,"Inconnu",IF($H24=99,"Interrompu",$D24)),0),"Non requis") -> 65064 | N24: =IF(INTRO!$E$39="Endémique", IF($I24>0, IF($I24=4,"Inconnu",IF($I24=99,"Interrompu",$D24)), 0),"Non requis") -> 0 | O24: =IF(INTRO!$E$41="Endémique", IF(AND($J24>1,$J24<5), IF($J24=4, "Inconnu", E24+F24), 0),"Non requis") -> 21590 | P24: =IF(INTRO!$E$43="Endémique", IF(AND($K24>0,$K24<5), IF($K24=4,"Inconnu", IF($K24=1, $F24*0.33, IF($K24=2, $F24*0.5+$G24*0.2, SUM(F24:G24)))), 0),"Non requis") -> 0 | Q24: 1 | R24: 0 | S24: 2 | T24: 0 | Y24: 16426 | Z24: Anisok
A25: =IF(INTRO!$E$33<>0,INTRO!$E$33, " ") -> GUINEE EQUATORIALE | B25: Welenzas | C25: Mongomo | D25: 68354 | E25: =IF(INTRO!$E$48="","",ROUND($D25*INTRO!$E$48,0)) -> 7355 | F25: =IF(INTRO!$E$49="","",ROUND($D25*INTRO!$E$49,0)) -> 15327 | G25: =IF(INTRO!$E$50="","",ROUND($D25*INTRO!$E$50,0)) -> 42773 | H25: 1 | I25: 0 | J25: 3 | K25: 0 | L25: 1 | M25: =IF(INTRO!$E$37="Endémique",IF($H25>0,IF($H25=4,"Inconnu",IF($H25=99,"Interrompu",$D25)),0),"Non requis") -> 68354 | N25: =IF(INTRO!$E$39="Endémique", IF($I25>0, IF($I25=4,"Inconnu",IF($I25=99,"Interrompu",$D25)), 0),"Non requis") -> 0 | O25: =IF(INTRO!$E$41="Endémique", IF(AND($J25>1,$J25<5), IF($J25=4, "Inconnu", E25+F25), 0),"Non requis") -> 22682 | P25: =IF(INTRO!$E$43="Endémique", IF(AND($K25>0,$K25<5), IF($K25=4,"Inconnu", IF($K25=1, $F25*0.33, IF($K25=2, $F25*0.5+$G25*0.2, SUM(F25:G25)))), 0),"Non requis") -> 0 | Q25: 1 | R25: 0 | S25: 2 | T25: 0 | Y25: 16427 | Z25: Mongomo
A26: =IF(INTRO!$E$33<>0,INTRO!$E$33, " ") -> GUINEE EQUATORIALE | B26: Welenzas | C26: Nsork | D26: 20211 | E26: =IF(INTRO!$E$48="","",ROUND($D26*INTRO!$E$48,0)) -> 2175 | F26: =IF(INTRO!$E$49="","",ROUND($D26*INTRO!$E$49,0)) -> 4532 | G26: =IF(INTRO!$E$50="","",ROUND($D26*INTRO!$E$50,0)) -> 12647 | H26: 1 | I26: 0 | J26: 3 | K26: 1 | L26: 1 | M26: =IF(INTRO!$E$37="Endémique",IF($H26>0,IF($H26=4,"Inconnu",IF($H26=99,"Interrompu",$D26)),0),"Non requis") -> 20211 | N26: =IF(INTRO!$E$39="Endémique", IF($I26>0, IF($I26=4,"Inconnu",IF($I26=99,"Interrompu",$D26)), 0),"Non requis") -> 0 | O26: =IF(INTRO!$E$41="Endémique", IF(AND($J26>1,$J26<5), IF($J26=4, "Inconnu", E26+F26), 0),"Non requis") -> 6707 | P26: =IF(INTRO!$E$43="Endémique", IF(AND($K26>0,$K26<5), IF($K26=4,"Inconnu", IF($K26=1, $F26*0.33, IF($K26=2, $F26*0.5+$G26*0.2, SUM(F26:G26)))), 0),"Non requis") -> 1495.56 | Q26: 1 | R26: 0 | S26: 2 | T26: 0 | Y26: 16428 | Z26: Nsork

Sheet ALB_MBD
A1: Albendazole (ALB) et Mebendazole (MBD)
A2: Structure administrative, population ciblée par groupe d'âge, plan de traitement et information sur les comprimés
A4: TOTAL | D4: =SUM(D$9:D$1000) -> 125745 | E4: =SUM(E$9:E$1000) -> 262038 | F4: =SUM(F$9:F$1000) -> 387783 | I4: =SUM(I$9:I$1000) -> 0 | J4: =SUM(J$9:J$1000) -> 806214 | M4: =SUM(M$9:M$1000) -> 248629 | N4: =SUM(N$9:N$1000) -> 92750 | O4: =SUM(O$9:O$1000) -> 0 | P4: =SUM(P$9:P$1000) -> 341379 | Q4: =SUM(Q$9:Q$1000) -> 0 | R4: =SUM(R$9:R$1000) -> 0 | S4: 0 | T4: 0 | U4: 0 | V4: 1596154 | W4: 7989 | X4: 0 | Y4: 92750 | Z4: 465 | AA4: 0 | AB4: 0 | AC4: 0
A6: Structure administrative du pays | D6: Population nécessitant un traitement avec ALB/MBD | G6: Plan de traitement | I6: Population couverte par le PEFL avec ALB | J6: Endémique à la Loase | L6: Médicament choisi pour le traitement des STH | M6: Population cible | U6: Albendazole (ALB) | AA6: Mebendazole (MBD)
A7: Pays | B7: Région/Département | C7: District | D7: EAPréS | E7: EAS | F7: Total | G7: FL | H7: STH | J7: Population | K7: Tours planifiés | M7: STH (ALB) | Q7: STH (MBD) | U7: Reste en stock (FL) | V7: Comprimés devant être fournis (FL) | W7: Flacons (400mg) 200 comprimés (FL) | X7: Reste en stock (STH) | Y7: Comprimés devant être fournis pour EAS (STH) | Z7: Flacons (400mg) 200 comprimés (STH) | AA7: Reste en stock | AB7: Comprimés devant être fournis pour EAS | AC7: Flacons (500mg) 150 comprimés
M8: EAPréS | N8: EAS | O8: Autres | P8: Total | Q8: EAPréS | R8: EAS | S8: Autres | T8: Total
A9: =IF(AND(INTRO!$E$37="Non endémique",INTRO!$E$41="Non endémique")," ",IF(COUNTRY_INFO!A9=0," ",COUNTRY_INFO!A9)) -> GUINEE EQUATORIALE | B9: =IF(AND(INTRO!$E$37="Non endémique",INTRO!$E$41="Non endémique")," ",IF(COUNTRY_INFO!B9=0," ",COUNTRY_INFO!B9)) -> Annobon | C9: =IF(AND(INTRO!$E$37="Non endémique",INTRO!$E$41="Non endémique")," ",IF(COUNTRY_INFO!C9=0," ",COUNTRY_INFO!C9)) -> Annonbon | D9: =IF(AND(INTRO!$E$37="Non endémique",INTRO!$E$41="Non endémique"),0,IF(AND(OR(COUNTRY_INFO!$H9=0,COUNTRY_INFO!$H9=4,COUNTRY_INFO!$H9=99),OR(COUNTRY_INFO!$J9=0,COUNTRY_INFO!$J9=4)),0,COUNTRY_INFO!$E9)) -> 873 | E9: =IF(AND(INTRO!$E$37="Non endémique",INTRO!$E$41="Non endémique"),0,IF(AND(OR(COUNTRY_INFO!$H9=0,COUNTRY_INFO!$H9=4,COUNTRY_INFO!$H9=99),OR(COUNTRY_INFO!$J9=0,COUNTRY_INFO!$J9=4)),0,COUNTRY_INFO!$F9)) -> 1820 | F9: =SUM(D9:E9) -> 2693 | G9: =IF(AND(INTRO!$E$37="Non endémique",INTRO!$E$41="Non endémique"),0,COUNTRY_INFO!Q9) -> 0 | H9: =IF(AND(INTRO!$E$37="Non endémique",INTRO!$E$41="Non endémique"),0,COUNTRY_INFO!S9) -> 2 | I9: =IF($G9=1,IVM!$G9,0) -> 0 | J9: =IF($G9=0, " ", IF(COUNTRY_INFO!$H9=1, IF(COUNTRY_INFO!$L9=1, 0," ")," ")) ->  | L9: ALB | M9: =IF($L9="ALB", IF(INTRO!$E$39="Non endémique",IF($H9<>0,$D9*($H9-$G9),0),$D9*$H9), 0) -> 1746 | N9: =IF($L9="ALB", IF($H9=0, 0, IF(AND($I9=0, OR($J9=0,$J9=" ")), $E9*$H9, IF(AND($I9=0, $J9>0), IF(($H9-$K9)<=0, 0, $E9*(MAX($H9,$K9)-MIN($H9,$K9))), IF(AND($I9>0, $J9=0), $E9*($H9-$G9), IF($J9=" ", 0, $J9*$E9/($I9+$J9)*$K9+$I9*$E9/($I9+$J9)*($H9-$G9)))))), 0) -> 3640 | P9: =SUM(M9:O9) -> 5386 | Q9: =IF($L9="MBD", IF(INTRO!$E$39="Non endémique",IF($H9<>0,$D9*($H9-$G9),0),$D9*$H9),0) -> 0 | R9: =IF($L9="MBD", IF($H9=0, 0, IF(AND($I9=0, OR($J9=0,$J9=" ")), $E9*$H9, IF(AND($I9=0, $J9>0), IF(($H9-$K9)<=0, 0, $E9*(MAX($H9,$K9)-MIN($H9,$K9))), IF(AND($I9>0, $J9=0), $E9*($H9-$G9), IF($J9=" ", 0, $J9*$E9/($I9+$J9)*$K9+$I9*$E9/($I9+$J9)*($H9-$G9)))))), 0) -> 0 | T9: =SUM(Q9:S9) -> 0 | V9: =IF($J9<>" ", IF(($I9+$J9*$K9)>$U9, ($I9+$J9*$K9)-$U9,0), IF($I9>$U9, $I9-$U9, 0)) -> 0 | W9: =IF($J9<>" ", ROUNDUP(($I9+$J9*$K9)/200,0), ROUNDUP($I9/200,0)) -> 0 | Y9: =IF($N9>$X9,$N9-$X9,0) -> 3640 | Z9: =ROUNDUP($N9/200,0) -> 19 | AB9: =IF($R9>$AA9,$R9-$AA9,0) -> 0 | AC9: =ROUNDUP($R9/150,0) -> 0
A10: =IF(AND(INTRO!$E$37="Non endémique",INTRO!$E$41="Non endémique")," ",IF(COUNTRY_INFO!A10=0," ",COUNTRY_INFO!A10)) -> GUINEE EQUATORIALE | B10: =IF(AND(INTRO!$E$37="Non endémique",INTRO!$E$41="Non endémique")," ",IF(COUNTRY_INFO!B10=0," ",COUNTRY_INFO!B10)) -> Bioko Norte | C10: =IF(AND(INTRO!$E$37="Non endémique",INTRO!$E$41="Non endémique")," ",IF(COUNTRY_INFO!C10=0," ",COUNTRY_INFO!C10)) -> Baney | D10: =IF(AND(INTRO!$E$37="Non endémique",INTRO!$E$41="Non endémique"),0,IF(AND(OR(COUNTRY_INFO!$H10=0,COUNTRY_INFO!$H10=4,COUNTRY_INFO!$H10=99),OR(COUNTRY_INFO!$J10=0,COUNTRY_INFO!$J10=4)),0,COUNTRY_INFO!$E10)) -> 3312 | E10: =IF(AND(INTRO!$E$37="Non endémique",INTRO!$E$41="Non endémique"),0,IF(AND(OR(COUNTRY_INFO!$H10=0,COUNTRY_INFO!$H10=4,COUNTRY_INFO!$H10=99),OR(COUNTRY_INFO!$J10=0,COUNTRY_INFO!$J10=4)),0,COUNTRY_INFO!$F10)) -> 6902 | F10: 10214 | G10: =IF(AND(INTRO!$E$37="Non endémique",INTRO!$E$41="Non endémique"),0,COUNTRY_INFO!Q10) -> 1 | H10: =IF(AND(INTRO!$E$37="Non endémique",INTRO!$E$41="Non endémique"),0,COUNTRY_INFO!S10) -> 2 | I10: =IF($G10=1,IVM!$G10,0) -> 0 | J10: 26164 | K10: 2 | L10: ALB | M10: =IF($L10="ALB", IF(INTRO!$E$39="Non endémique",IF($H10<>0,$D10*($H10-$G10),0),$D10*$H10), 0) -> 6624 | N10: 0 | P10: 6624 | Q10: =IF($L10="MBD", IF(INTRO!$E$39="Non endémique",IF($H10<>0,$D10*($H10-$G10),0),$D10*$H10),0) -> 0 | R10: 0 | T10: 0 | V10: 52328 | W10: 262 | Y10: 0 | Z10: 0 | AB10: 0 | AC10: 0
A11: =IF(AND(INTRO!$E$37="Non endémique",INTRO!$E$41="Non endémique")," ",IF(COUNTRY_INFO!A11=0," ",COUNTRY_INFO!A11)) -> GUINEE EQUATORIALE | B11: =IF(AND(INTRO!$E$37="Non endémique",INTRO!$E$41="Non endémique")," ",IF(COUNTRY_INFO!B11=0," ",COUNTRY_INFO!B11)) -> Bioko Norte | C11: =IF(AND(INTRO!$E$37="Non endémique",INTRO!$E$41="Non endémique")," ",IF(COUNTRY_INFO!C11=0," ",COUNTRY_INFO!C11)) -> Malabo | D11: =IF(AND(INTRO!$E$37="Non endémique",INTRO!$E$41="Non endémique"),0,IF(AND(OR(COUNTRY_INFO!$H11=0,COUNTRY_INFO!$H11=4,COUNTRY_INFO!$H11=99),OR(COUNTRY_INFO!$J11=0,COUNTRY_INFO!$J11=4)),0,COUNTRY_INFO!$E11)) -> 19950 | E11: =IF(AND(INTRO!$E$37="Non endémique",INTRO!$E$41="Non endémique"),0,IF(AND(OR(COUNTRY_INFO!$H11=0,COUNTRY_INFO!$H11=4,COUNTRY_INFO!$H11=99),OR(COUNTRY_INFO!$J11=0,COUNTRY_INFO!$J11=4)),0,COUNTRY_INFO!$F11)) -> 41574 | F11: 61524 | G11: =IF(AND(INTRO!$E$37="Non endémique",INTRO!$E$41="Non endémique"),0,COUNTRY_INFO!Q11) -> 0 | H11: =IF(AND(INTRO!$E$37="Non endémique",INTRO!$E$41="Non endémique"),0,COUNTRY_INFO!S11) -> 2 | I11: =IF($G11=1,IVM!$G11,0) -> 0 | J11: =IF($G11=0, " ", IF(COUNTRY_INFO!$H11=1, IF(COUNTRY_INFO!$L11=1, 0," ")," ")) ->  | L11: ALB | M11: =IF($L11="ALB", IF(INTRO!$E$39="Non endémique",IF($H11<>0,$D11*($H11-$G11),0),$D11*$H11), 0) -> 39900 | N11: 83148 | P11: 123048 | Q11: =IF($L11="MBD", IF(INTRO!$E$39="Non endémique",IF($H11<>0,$D11*($H11-$G11),0),$D11*$H11),0) -> 0 | R11: 0 | T11: 0 | V11: 0 | W11: 0 | Y11: 83148 | Z11: 416 | AB11: 0 | AC11: 0
A12: =IF(AND(INTRO!$E$37="Non endémique",INTRO!$E$41="Non endémique")," ",IF(COUNTRY_INFO!A12=0," ",COUNTRY_INFO!A12)) -> GUINEE EQUATORIALE | B12: =IF(AND(INTRO!$E$37="Non endémique",INTRO!$E$41="Non endémique")," ",IF(COUNTRY_INFO!B12=0," ",COUNTRY_INFO!B12)) -> Bioko Sur | C12: =IF(AND(INTRO!$E$37="Non endémique",INTRO!$E$41="Non endémique")," ",IF(COUNTRY_INFO!C12=0," ",COUNTRY_INFO!C12)) -> Luba | D12: =IF(AND(INTRO!$E$37="Non endémique",INTRO!$E$41="Non endémique"),0,IF(AND(OR(COUNTRY_INFO!$H12=0,COUNTRY_INFO!$H12=4,COUNTRY_INFO!$H12=99),OR(COUNTRY_INFO!$J12=0,COUNTRY_INFO!$J12=4)),0,COUNTRY_INFO!$E12)) -> 2861 | E12: =IF(AND(INTRO!$E$37="Non endémique",INTRO!$E$41="Non endémique"),0,IF(AND(OR(COUNTRY_INFO!$H12=0,COUNTRY_INFO!$H12=4,COUNTRY_INFO!$H12=99),OR(COUNTRY_INFO!$J12=0,COUNTRY_INFO!$J12=4)),0,COUNTRY_INFO!$F12)) -> 5962 | F12: 8823 | G12: =IF(AND(INTRO!$E$37="Non endémique",INTRO!$E$41="Non endémique"),0,COUNTRY_INFO!Q12) -> 0 | H12: =IF(AND(INTRO!$E$37="Non endémique",INTRO!$E$41="Non endémique"),0,COUNTRY_INFO!S12) -> 1 | I12: =IF($G12=1,IVM!$G12,0) -> 0 | J12: =IF($G12=0, " ", IF(COUNTRY_INFO!$H12=1, IF(COUNTRY_INFO!$L12=1, 0," ")," ")) ->  | L12: ALB | M12: =IF($L12="ALB", IF(INTRO!$E$39="Non endémique",IF($H12<>0,$D12*($H12-$G12),0),$D12*$H12), 0) -> 2861 | N12: 5962 | P12: 8823 | Q12: =IF($L12="MBD", IF(INTRO!$E$39="Non endémique",IF($H12<>0,$D12*($H12-$G12),0),$D12*$H12),0) -> 0 | R12: 0 | T12: 0 | V12: 0 | W12: 0 | Y12: 5962 | Z12: 30 | AB12: 0 | AC12: 0
A13: =IF(AND(INTRO!$E$37="Non endémique",INTRO!$E$41="Non endémique")," ",IF(COUNTRY_INFO!A13=0," ",COUNTRY_INFO!A13)) -> GUINEE EQUATORIALE | B13: =IF(AND(INTRO!$E$37="Non endémique",INTRO!$E$41="Non endémique")," ",IF(COUNTRY_INFO!B13=0," ",COUNTRY_INFO!B13)) -> Bioko Sur | C13: =IF(AND(INTRO!$E$37="Non endémique",INTRO!$E$41="Non endémique")," ",IF(COUNTRY_INFO!C13=0," ",COUNTRY_INFO!C13)) -> Riaba | D13: =IF(AND(INTRO!$E$37="Non endémique",INTRO!$E$41="Non endémique"),0,IF(AND(OR(COUNTRY_INFO!$H13=0,COUNTRY_INFO!$H13=4,COUNTRY_INFO!$H13=99),OR(COUNTRY_INFO!$J13=0,COUNTRY_INFO!$J13=4)),0,COUNTRY_INFO!$E13)) -> 1030 | E13: =IF(AND(INTRO!$E$37="Non endémique",INTRO!$E$41="Non endémique"),0,IF(AND(OR(COUNTRY_INFO!$H13=0,COUNTRY_INFO!$H13=4,COUNTRY_INFO!$H13=99),OR(COUNTRY_INFO!$J13=0,COUNTRY_INFO!$J13=4)),0,COUNTRY_INFO!$F13)) -> 2147 | F13: 3177 | G13: =IF(AND(INTRO!$E$37="Non endémique",INTRO!$E$41="Non endémique"),0,COUNTRY_INFO!Q13) -> 1 | H13: =IF(AND(INTRO!$E$37="Non endémique",INTRO!$E$41="Non endémique"),0,COUNTRY_INFO!S13) -> 2 | I13: =IF($G13=1,IVM!$G13,0) -> 0 | J13: 8137 | L13: ALB | M13: =IF($L13="ALB", IF(INTRO!$E$39="Non endémique",IF($H13<>0,$D13*($H13-$G13),0),$D13*$H13), 0) -> 2060 | N13: 0 | P13: 2060 | Q13: =IF($L13="MBD", IF(INTRO!$E$39="Non endémique",IF($H13<>0,$D13*($H13-$G13),0),$D13*$H13),0) -> 0 | R13: 0 | T13: 0 | V13: 0 | W13: 0 | Y13: 0 | Z13: 0 | AB13: 0 | AC13: 0
A14: =IF(AND(INTRO!$E$37="Non endémique",INTRO!$E$41="Non endémique")," ",IF(COUNTRY_INFO!A14=0," ",COUNTRY_INFO!A14)) -> GUINEE EQUATORIALE | B14: =IF(AND(INTRO!$E$37="Non endémique",INTRO!$E$41="Non endémique")," ",IF(COUNTRY_INFO!B14=0," ",COUNTRY_INFO!B14)) -> Centro Sur | C14: =IF(AND(INTRO!$E$37="Non endémique",INTRO!$E$41="Non endémique")," ",IF(COUNTRY_INFO!C14=0," ",COUNTRY_INFO!C14)) -> Acurenam | D14: =IF(AND(INTRO!$E$37="Non endémique",INTRO!$E$41="Non endémique"),0,IF(AND(OR(COUNTRY_INFO!$H14=0,COUNTRY_INFO!$H14=4,COUNTRY_INFO!$H14=99),OR(COUNTRY_INFO!$J14=0,COUNTRY_INFO!$J14=4)),0,COUNTRY_INFO!$E14)) -> 3601 | E14: =IF(AND(INTRO!$E$37="Non endémique",INTRO!$E$41="Non endémique"),0,IF(AND(OR(COUNTRY_INFO!$H14=0,COUNTRY_INFO!$H14=4,COUNTRY_INFO!$H14=99),OR(COUNTRY_INFO!$J14=0,COUNTRY_INFO!$J14=4)),0,COUNTRY_INFO!$F14)) -> 7504 | F14: 11105 | G14: =IF(AND(INTRO!$E$37="Non endémique",INTRO!$E$41="Non endémique"),0,COUNTRY_INFO!Q14) -> 1 | H14: =IF(AND(INTRO!$E$37="Non endémique",INTRO!$E$41="Non endémique"),0,COUNTRY_INFO!S14) -> 2 | I14: =IF($G14=1,IVM!$G14,0) -> 0 | J14: 28445 | K14: 2 | L14: ALB | M14: =IF($L14="ALB", IF(INTRO!$E$39="Non endémique",IF($H14<>0,$D14*($H14-$G14),0),$D14*$H14), 0) -> 7202 | N14: 0 | P14: 7202 | Q14: =IF($L14="MBD", IF(INTRO!$E$39="Non endémique",IF($H14<>0,$D14*($H14-$G14),0),$D14*$H14),0) -> 0 | R14: 0 | T14: 0 | V14: 56890 | W14: 285 | Y14: 0 | Z14: 0 | AB14: 0 | AC14: 0
A15: =IF(AND(INTRO!$E$37="Non endémique",INTRO!$E$41="Non endémique")," ",IF(COUNTRY_INFO!A15=0," ",COUNTRY_INFO!A15)) -> GUINEE EQUATORIALE | B15: =IF(AND(INTRO!$E$37="Non endémique",INTRO!$E$41="Non endémique")," ",IF(COUNTRY_INFO!B15=0," ",COUNTRY_INFO!B15)) -> Centro Sur | C15: =IF(AND(INTRO!$E$37="Non endémique",INTRO!$E$41="Non endémique")," ",IF(COUNTRY_INFO!C15=0," ",COUNTRY_INFO!C15)) -> Evinayong | D15: =IF(AND(INTRO!$E$37="Non endémique",INTRO!$E$41="Non endémique"),0,IF(AND(OR(COUNTRY_INFO!$H15=0,COUNTRY_INFO!$H15=4,COUNTRY_INFO!$H15=99),OR(COUNTRY_INFO!$J15=0,COUNTRY_INFO!$J15=4)),0,COUNTRY_INFO!$E15)) -> 6611 | E15: =IF(AND(INTRO!$E$37="Non endémique",INTRO!$E$41="Non endémique"),0,IF(AND(OR(COUNTRY_INFO!$H15=0,COUNTRY_INFO!$H15=4,COUNTRY_INFO!$H15=99),OR(COUNTRY_INFO!$J15=0,COUNTRY_INFO!$J15=4)),0,COUNTRY_INFO!$F15)) -> 13777 | F15: 20388 | G15: =IF(AND(INTRO!$E$37="Non endémique",INTRO!$E$41="Non endémique"),0,COUNTRY_INFO!Q15) -> 1 | H15: =IF(AND(INTRO!$E$37="Non endémique",INTRO!$E$41="Non endémique"),0,COUNTRY_INFO!S15) -> 2 | I15: =IF($G15=1,IVM!$G15,0) -> 0 | J15: 52224 | K15: 2 | L15: ALB | M15: =IF($L15="ALB", IF(INTRO!$E$39="Non endémique",IF($H15<>0,$D15*($H15-$G15),0),$D15*$H15), 0) -> 13222 | N15: 0 | P15: 13222 | Q15: =IF($L15="MBD", IF(INTRO!$E$39="Non endémique",IF($H15<>0,$D15*($H15-$G15),0),$D15*$H15),0) -> 0 | R15: 0 | T15: 0 | V15: 104448 | W15: 523 | Y15: 0 | Z15: 0 | AB15: 0 | AC15: 0
A16: =IF(AND(INTRO!$E$37="Non endémique",INTRO!$E$41="Non endémique")," ",IF(COUNTRY_INFO!A16=0," ",COUNTRY_INFO!A16)) -> GUINEE EQUATORIALE | B16: =IF(AND(INTRO!$E$37="Non endémique",INTRO!$E$41="Non endémique")," ",IF(COUNTRY_INFO!B16=0," ",COUNTRY_INFO!B16)) -> Centro Sur | C16: =IF(AND(INTRO!$E$37="Non endémique",INTRO!$E$41="Non endémique")," ",IF(COUNTRY_INFO!C16=0," ",COUNTRY_INFO!C16)) -> Niefang | D16: =IF(AND(INTRO!$E$37="Non endémique",INTRO!$E$41="Non endémique"),0,IF(AND(OR(COUNTRY_INFO!$H16=0,COUNTRY_INFO!$H16=4,COUNTRY_INFO!$H16=99),OR(COUNTRY_INFO!$J16=0,COUNTRY_INFO!$J16=4)),0,COUNTRY_INFO!$E16)) -> 8470 | E16: =IF(AND(INTRO!$E$37="Non endémique",INTRO!$E$41="Non endémique"),0,IF(AND(OR(COUNTRY_INFO!$H16=0,COUNTRY_INFO!$H16=4,COUNTRY_INFO!$H16=99),OR(COUNTRY_INFO!$J16=0,COUNTRY_INFO!$J16=4)),0,COUNTRY_INFO!$F16)) -> 17650 | F16: 26120 | G16: =IF(AND(INTRO!$E$37="Non endémique",INTRO!$E$41="Non endémique"),0,COUNTRY_INFO!Q16) -> 1 | H16: =IF(AND(INTRO!$E$37="Non endémique",INTRO!$E$41="Non endémique"),0,COUNTRY_INFO!S16) -> 2 | I16: =IF($G16=1,IVM!$G16,0) -> 0 | J16: 66905 | K16: 2 | L16: ALB | M16: =IF($L16="ALB", IF(INTRO!$E$39="Non endémique",IF($H16<>0,$D16*($H16-$G16),0),$D16*$H16), 0) -> 16940 | N16: 0 | P16: 16940 | Q16: =IF($L16="MBD", IF(INTRO!$E$39="Non endémique",IF($H16<>0,$D16*($H16-$G16),0),$D16*$H16),0) -> 0 | R16: 0 | T16: 0 | V16: 133810 | W16: 670 | Y16: 0 | Z16: 0 | AB16: 0 | AC16: 0
A17: =IF(AND(INTRO!$E$37="Non endémique",INTRO!$E$41="Non endémique")," ",IF(COUNTRY_INFO!A17=0," ",COUNTRY_INFO!A17)) -> GUINEE EQUATORIALE | B17: =IF(AND(INTRO!$E$37="Non endémique",INTRO!$E$41="Non endémique")," ",IF(COUNTRY_INFO!B17=0," ",COUNTRY_INFO!B17)) -> Kientem | C17: =IF(AND(INTRO!$E$37="Non endémique",INTRO!$E$41="Non endémique")," ",IF(COUNTRY_INFO!C17=0," ",COUNTRY_INFO!C17)) -> Ebebiyin | D17: =IF(AND(INTRO!$E$37="Non endémique",INTRO!$E$41="Non endémique"),0,IF(AND(OR(COUNTRY_INFO!$H17=0,COUNTRY_INFO!$H17=4,COUNTRY_INFO!$H17=99),OR(COUNTRY_INFO!$J17=0,COUNTRY_INFO!$J17=4)),0,COUNTRY_INFO!$E17)) -> 14105 | E17: =IF(AND(INTRO!$E$37="Non endémique",INTRO!$E$41="Non endémique"),0,IF(AND(OR(COUNTRY_INFO!$H17=0,COUNTRY_INFO!$H17=4,COUNTRY_INFO!$H17=99),OR(COUNTRY_INFO!$J17=0,COUNTRY_INFO!$J17=4)),0,COUNTRY_INFO!$F17)) -> 29392 | F17: 43497 | G17: =IF(AND(INTRO!$E$37="Non endémique",INTRO!$E$41="Non endémique"),0,COUNTRY_INFO!Q17) -> 1 | H17: =IF(AND(INTRO!$E$37="Non endémique",INTRO!$E$41="Non endémique"),0,COUNTRY_INFO!S17) -> 2 | I17: =IF($G17=1,IVM!$G17,0) -> 0 | J17: 111417 | K17: 2 | L17: ALB | M17: =IF($L17="ALB", IF(INTRO!$E$39="Non endémique",IF($H17<>0,$D17*($H17-$G17),0),$D17*$H17), 0) -> 28210 | N17: 0 | P17: 28210 | Q17: =IF($L17="MBD", IF(INTRO!$E$39="Non endémique",IF($H17<>0,$D17*($H17-$G17),0),$D17*$H17),0) -> 0 | R17: 0 | T17: 0 | V17: 222834 | W17: 1115 | Y17: 0 | Z17: 0 | AB17: 0 | AC17: 0
A18: =IF(AND(INTRO!$E$37="Non endémique",INTRO!$E$41="Non endémique")," ",IF(COUNTRY_INFO!A18=0," ",COUNTRY_INFO!A18)) -> GUINEE EQUATORIALE | B18: =IF(AND(INTRO!$E$37="Non endémique",INTRO!$E$41="Non endémique")," ",IF(COUNTRY_INFO!B18=0," ",COUNTRY_INFO!B18)) -> Kientem | C18: =IF(AND(INTRO!$E$37="Non endémique",INTRO!$E$41="Non endémique")," ",IF(COUNTRY_INFO!C18=0," ",COUNTRY_INFO!C18)) -> Micomiseng | D18: =IF(AND(INTRO!$E$37="Non endémique",INTRO!$E$41="Non endémique"),0,IF(AND(OR(COUNTRY_INFO!$H18=0,COUNTRY_INFO!$H18=4,COUNTRY_INFO!$H18=99),OR(COUNTRY_INFO!$J18=0,COUNTRY_INFO!$J18=4)),0,COUNTRY_INFO!$E18)) -> 9274 | E18: =IF(AND(INTRO!$E$37="Non endémique",INTRO!$E$41="Non endémique"),0,IF(AND(OR(COUNTRY_INFO!$H18=0,COUNTRY_INFO!$H18=4,COUNTRY_INFO!$H18=99),OR(COUNTRY_INFO!$J18=0,COUNTRY_INFO!$J18=4)),0,COUNTRY_INFO!$F18)) -> 19325 | F18: 28599 | G18: =IF(AND(INTRO!$E$37="Non endémique",INTRO!$E$41="Non endémique"),0,COUNTRY_INFO!Q18) -> 1 | H18: =IF(AND(INTRO!$E$37="Non endémique",INTRO!$E$41="Non endémique"),0,COUNTRY_INFO!S18) -> 2 | I18: =IF($G18=1,IVM!$G18,0) -> 0 | J18: 73255 | K18: 2 | L18: ALB | M18: =IF($L18="ALB", IF(INTRO!$E$39="Non endémique",IF($H18<>0,$D18*($H18-$G18),0),$D18*$H18), 0) -> 18548 | N18: 0 | P18: 18548 | Q18: =IF($L18="MBD", IF(INTRO!$E$39="Non endémique",IF($H18<>0,$D18*($H18-$G18),0),$D18*$H18),0) -> 0 | R18: 0 | T18: 0 | V18: 146510 | W18: 733 | Y18: 0 | Z18: 0 | AB18: 0 | AC18: 0
A19: =IF(AND(INTRO!$E$37="Non endémique",INTRO!$E$41="Non endémique")," ",IF(COUNTRY_INFO!A19=0," ",COUNTRY_INFO!A19)) -> GUINEE EQUATORIALE | B19: =IF(AND(INTRO!$E$37="Non endémique",INTRO!$E$41="Non endémique")," ",IF(COUNTRY_INFO!B19=0," ",COUNTRY_INFO!B19)) -> Kientem | C19: =IF(AND(INTRO!$E$37="Non endémique",INTRO!$E$41="Non endémique")," ",IF(COUNTRY_INFO!C19=0," ",COUNTRY_INFO!C19)) -> Nsoknsomo | D19: =IF(AND(INTRO!$E$37="Non endémique",INTRO!$E$41="Non endémique"),0,IF(AND(OR(COUNTRY_INFO!$H19=0,COUNTRY_INFO!$H19=4,COUNTRY_INFO!$H19=99),OR(COUNTRY_INFO!$J19=0,COUNTRY_INFO!$J19=4)),0,COUNTRY_INFO!$E19)) -> 5346 | E19: =IF(AND(INTRO!$E$37="Non endémique",INTRO!$E$41="Non endémique"),0,IF(AND(OR(COUNTRY_INFO!$H19=0,COUNTRY_INFO!$H19=4,COUNTRY_INFO!$H19=99),OR(COUNTRY_INFO!$J19=0,COUNTRY_INFO!$J19=4)),0,COUNTRY_INFO!$F19)) -> 11141 | F19: 16487 | G19: =IF(AND(INTRO!$E$37="Non endémique",INTRO!$E$41="Non endémique"),0,COUNTRY_INFO!Q19) -> 1 | H19: =IF(AND(INTRO!$E$37="Non endémique",INTRO!$E$41="Non endémique"),0,COUNTRY_INFO!S19) -> 2 | I19: =IF($G19=1,IVM!$G19,0) -> 0 | J19: 42233 | K19: 2 | L19: ALB | M19: =IF($L19="ALB", IF(INTRO!$E$39="Non endémique",IF($H19<>0,$D19*($H19-$G19),0),$D19*$H19), 0) -> 10692 | N19: 0 | P19: 10692 | Q19: =IF($L19="MBD", IF(INTRO!$E$39="Non endémique",IF($H19<>0,$D19*($H19-$G19),0),$D19*$H19),0) -> 0 | R19: 0 | T19: 0 | V19: 84466 | W19: 423 | Y19: 0 | Z19: 0 | AB19: 0 | AC19: 0
A20: =IF(AND(INTRO!$E$37="Non endémique",INTRO!$E$41="Non endémique")," ",IF(COUNTRY_INFO!A20=0," ",COUNTRY_INFO!A20)) -> GUINEE EQUATORIALE | B20: =IF(AND(INTRO!$E$37="Non endémique",INTRO!$E$41="Non endémique")," ",IF(COUNTRY_INFO!B20=0," ",COUNTRY_INFO!B20)) -> Litoral | C20: =IF(AND(INTRO!$E$37="Non endémique",INTRO!$E$41="Non endémique")," ",IF(COUNTRY_INFO!C20=0," ",COUNTRY_INFO!C20)) -> Bata | D20: =IF(AND(INTRO!$E$37="Non endémique",INTRO!$E$41="Non endémique"),0,IF(AND(OR(COUNTRY_INFO!$H20=0,COUNTRY_INFO!$H20=4,COUNTRY_INFO!$H20=99),OR(COUNTRY_INFO!$J20=0,COUNTRY_INFO!$J20=4)),0,COUNTRY_INFO!$E20)) -> 22107 | E20: =IF(AND(INTRO!$E$37="Non endémique",INTRO!$E$41="Non endémique"),0,IF(AND(OR(COUNTRY_INFO!$H20=0,COUNTRY_INFO!$H20=4,COUNTRY_INFO!$H20=99),OR(COUNTRY_INFO!$J20=0,COUNTRY_INFO!$J20=4)),0,COUNTRY_INFO!$F20)) -> 46069 | F20: 68176 | G20: =IF(AND(INTRO!$E$37="Non endémique",INTRO!$E$41="Non endémique"),0,COUNTRY_INFO!Q20) -> 1 | H20: =IF(AND(INTRO!$E$37="Non endémique",INTRO!$E$41="Non endémique"),0,COUNTRY_INFO!S20) -> 2 | I20: =IF($G20=1,IVM!$G20,0) -> 0 | J20: 174635 | K20: 2 | L20: ALB | M20: =IF($L20="ALB", IF(INTRO!$E$39="Non endémique",IF($H20<>0,$D20*($H20-$G20),0),$D20*$H20), 0) -> 44214 | N20: 0 | P20: 44214 | Q20: =IF($L20="MBD", IF(INTRO!$E$39="Non endémique",IF($H20<>0,$D20*($H20-$G20),0),$D20*$H20),0) -> 0 | R20: 0 | T20: 0 | V20: 349270 | W20: 1747 | Y20: 0 | Z20: 0 | AB20: 0 | AC20: 0
A21: =IF(AND(INTRO!$E$37="Non endémique",INTRO!$E$41="Non endémique")," ",IF(COUNTRY_INFO!A21=0," ",COUNTRY_INFO!A21)) -> GUINEE EQUATORIALE | B21: =IF(AND(INTRO!$E$37="Non endémique",INTRO!$E$41="Non endémique")," ",IF(COUNTRY_INFO!B21=0," ",COUNTRY_INFO!B21)) -> Litoral | C21: =IF(AND(INTRO!$E$37="Non endémique",INTRO!$E$41="Non endémique")," ",IF(COUNTRY_INFO!C21=0," ",COUNTRY_INFO!C21)) -> Kogo | D21: =IF(AND(INTRO!$E$37="Non endémique",INTRO!$E$41="Non endémique"),0,IF(AND(OR(COUNTRY_INFO!$H21=0,COUNTRY_INFO!$H21=4,COUNTRY_INFO!$H21=99),OR(COUNTRY_INFO!$J21=0,COUNTRY_INFO!$J21=4)),0,COUNTRY_INFO!$E21)) -> 4522 | E21: =IF(AND(INTRO!$E$37="Non endémique",INTRO!$E$41="Non endémique"),0,IF(AND(OR(COUNTRY_INFO!$H21=0,COUNTRY_INFO!$H21=4,COUNTRY_INFO!$H21=99),OR(COUNTRY_INFO!$J21=0,COUNTRY_INFO!$J21=4)),0,COUNTRY_INFO!$F21)) -> 9424 | F21: 13946 | G21: =IF(AND(INTRO!$E$37="Non endémique",INTRO!$E$41="Non endémique"),0,COUNTRY_INFO!Q21) -> 1 | H21: =IF(AND(INTRO!$E$37="Non endémique",INTRO!$E$41="Non endémique"),0,COUNTRY_INFO!S21) -> 2 | I21: =IF($G21=1,IVM!$G21,0) -> 0 | J21: 35724 | K21: 2 | L21: ALB | M21: =IF($L21="ALB", IF(INTRO!$E$39="Non endémique",IF($H21<>0,$D21*($H21-$G21),0),$D21*$H21), 0) -> 9044 | N21: 0 | P21: 9044 | Q21: =IF($L21="MBD", IF(INTRO!$E$39="Non endémique",IF($H21<>0,$D21*($H21-$G21),0),$D21*$H21),0) -> 0 | R21: 0 | T21: 0 | V21: 71448 | W21: 358 | Y21: 0 | Z21: 0 | AB21: 0 | AC21: 0
A22: =IF(AND(INTRO!$E$37="Non endémique",INTRO!$E$41="Non endémique")," ",IF(COUNTRY_INFO!A22=0," ",COUNTRY_INFO!A22)) -> GUINEE EQUATORIALE | B22: =IF(AND(INTRO!$E$37="Non endémique",INTRO!$E$41="Non endémique")," ",IF(COUNTRY_INFO!B22=0," ",COUNTRY_INFO!B22)) -> Litoral | C22: =IF(AND(INTRO!$E$37="Non endémique",INTRO!$E$41="Non endémique")," ",IF(COUNTRY_INFO!C22=0," ",COUNTRY_INFO!C22)) -> Mbini | D22: =IF(AND(INTRO!$E$37="Non endémique",INTRO!$E$41="Non endémique"),0,IF(AND(OR(COUNTRY_INFO!$H22=0,COUNTRY_INFO!$H22=4,COUNTRY_INFO!$H22=99),OR(COUNTRY_INFO!$J22=0,COUNTRY_INFO!$J22=4)),0,COUNTRY_INFO!$E22)) -> 4345 | E22: =IF(AND(INTRO!$E$37="Non endémique",INTRO!$E$41="Non endémique"),0,IF(AND(OR(COUNTRY_INFO!$H22=0,COUNTRY_INFO!$H22=4,COUNTRY_INFO!$H22=99),OR(COUNTRY_INFO!$J22=0,COUNTRY_INFO!$J22=4)),0,COUNTRY_INFO!$F22)) -> 9054 | F22: 13399 | G22: =IF(AND(INTRO!$E$37="Non endémique",INTRO!$E$41="Non endémique"),0,COUNTRY_INFO!Q22) -> 1 | H22: =IF(AND(INTRO!$E$37="Non endémique",INTRO!$E$41="Non endémique"),0,COUNTRY_INFO!S22) -> 2 | I22: =IF($G22=1,IVM!$G22,0) -> 0 | J22: 34322 | K22: 2 | L22: ALB | M22: =IF($L22="ALB", IF(INTRO!$E$39="Non endémique",IF($H22<>0,$D22*($H22-$G22),0),$D22*$H22), 0) -> 8690 | N22: 0 | P22: 8690 | Q22: =IF($L22="MBD", IF(INTRO!$E$39="Non endémique",IF($H22<>0,$D22*($H22-$G22),0),$D22*$H22),0) -> 0 | R22: 0 | T22: 0 | V22: 68644 | W22: 344 | Y22: 0 | Z22: 0 | AB22: 0 | AC22: 0
A23: =IF(AND(INTRO!$E$37="Non endémique",INTRO!$E$41="Non endémique")," ",IF(COUNTRY_INFO!A23=0," ",COUNTRY_INFO!A23)) -> GUINEE EQUATORIALE | B23: =IF(AND(INTRO!$E$37="Non endémique",INTRO!$E$41="Non endémique")," ",IF(COUNTRY_INFO!B23=0," ",COUNTRY_INFO!B23)) -> Welenzas | C23: =IF(AND(INTRO!$E$37="Non endémique",INTRO!$E$41="Non endémique")," ",IF(COUNTRY_INFO!C23=0," ",COUNTRY_INFO!C23)) -> Akonibe | D23: =IF(AND(INTRO!$E$37="Non endémique",INTRO!$E$41="Non endémique"),0,IF(AND(OR(COUNTRY_INFO!$H23=0,COUNTRY_INFO!$H23=4,COUNTRY_INFO!$H23=99),OR(COUNTRY_INFO!$J23=0,COUNTRY_INFO!$J23=4)),0,COUNTRY_INFO!$E23)) -> 2807 | E23: =IF(AND(INTRO!$E$37="Non endémique",INTRO!$E$41="Non endémique"),0,IF(AND(OR(COUNTRY_INFO!$H23=0,COUNTRY_INFO!$H23=4,COUNTRY_INFO!$H23=99),OR(COUNTRY_INFO!$J23=0,COUNTRY_INFO!$J23=4)),0,COUNTRY_INFO!$F23)) -> 5849 | F23: 8656 | G23: =IF(AND(INTRO!$E$37="Non endémique",INTRO!$E$41="Non endémique"),0,COUNTRY_INFO!Q23) -> 1 | H23: =IF(AND(INTRO!$E$37="Non endémique",INTRO!$E$41="Non endémique"),0,COUNTRY_INFO!S23) -> 2 | I23: =IF($G23=1,IVM!$G23,0) -> 0 | J23: 22171 | K23: 2 | L23: ALB | M23: =IF($L23="ALB", IF(INTRO!$E$39="Non endémique",IF($H23<>0,$D23*($H23-$G23),0),$D23*$H23), 0) -> 5614 | N23: 0 | P23: 5614 | Q23: =IF($L23="MBD", IF(INTRO!$E$39="Non endémique",IF($H23<>0,$D23*($H23-$G23),0),$D23*$H23),0) -> 0 | R23: 0 | T23: 0 | V23: 44342 | W23: 222 | Y23: 0 | Z23: 0 | AB23: 0 | AC23: 0
A24: =IF(AND(INTRO!$E$37="Non endémique",INTRO!$E$41="Non endémique")," ",IF(COUNTRY_INFO!A24=0," ",COUNTRY_INFO!A24)) -> GUINEE EQUATORIALE | B24: =IF(AND(INTRO!$E$37="Non endémique",INTRO!$E$41="Non endémique")," ",IF(COUNTRY_INFO!B24=0," ",COUNTRY_INFO!B24)) -> Welenzas | C24: =IF(AND(INTRO!$E$37="Non endémique",INTRO!$E$41="Non endémique")," ",IF(COUNTRY_INFO!C24=0," ",COUNTRY_INFO!C24)) -> Anisok | D24: =IF(AND(INTRO!$E$37="Non endémique",INTRO!$E$41="Non endémique"),0,IF(AND(OR(COUNTRY_INFO!$H24=0,COUNTRY_INFO!$H24=4,COUNTRY_INFO!$H24=99),OR(COUNTRY_INFO!$J24=0,COUNTRY_INFO!$J24=4)),0,COUNTRY_INFO!$E24)) -> 7001 | E24: =IF(AND(INTRO!$E$37="Non endémique",INTRO!$E$41="Non endémique"),0,IF(AND(OR(COUNTRY_INFO!$H24=0,COUNTRY_INFO!$H24=4,COUNTRY_INFO!$H24=99),OR(COUNTRY_INFO!$J24=0,COUNTRY_INFO!$J24=4)),0,COUNTRY_INFO!$F24)) -> 14589 | F24: 21590 | G24: =IF(AND(INTRO!$E$37="Non endémique",INTRO!$E$41="Non endémique"),0,COUNTRY_INFO!Q24) -> 1 | H24: =IF(AND(INTRO!$E$37="Non endémique",INTRO!$E$41="Non endémique"),0,COUNTRY_INFO!S24) -> 2 | I24: =IF($G24=1,IVM!$G24,0) -> 0 | J24: 55303 | K24: 2 | L24: ALB | M24: =IF($L24="ALB", IF(INTRO!$E$39="Non endémique",IF($H24<>0,$D24*($H24-$G24),0),$D24*$H24), 0) -> 14002 | N24: 0 | P24: 14002 | Q24: =IF($L24="MBD", IF(INTRO!$E$39="Non endémique",IF($H24<>0,$D24*($H24-$G24),0),$D24*$H24),0) -> 0 | R24: 0 | T24: 0 | V24: 110606 | W24: 554 | Y24: 0 | Z24: 0 | AB24: 0 | AC24: 0
A25: =IF(AND(INTRO!$E$37="Non endémique",INTRO!$E$41="Non endémique")," ",IF(COUNTRY_INFO!A25=0," ",COUNTRY_INFO!A25)) -> GUINEE EQUATORIALE | B25: =IF(AND(INTRO!$E$37="Non endémique",INTRO!$E$41="Non endémique")," ",IF(COUNTRY_INFO!B25=0," ",COUNTRY_INFO!B25)) -> Welenzas | C25: =IF(AND(INTRO!$E$37="Non endémique",INTRO!$E$41="Non endémique")," ",IF(COUNTRY_INFO!C25=0," ",COUNTRY_INFO!C25)) -> Mongomo | D25: =IF(AND(INTRO!$E$37="Non endémique",INTRO!$E$41="Non endémique"),0,IF(AND(OR(COUNTRY_INFO!$H25=0,COUNTRY_INFO!$H25=4,COUNTRY_INFO!$H25=99),OR(COUNTRY_INFO!$J25=0,COUNTRY_INFO!$J25=4)),0,COUNTRY_INFO!$E25)) -> 7355 | E25: =IF(AND(INTRO!$E$37="Non endémique",INTRO!$E$41="Non endémique"),0,IF(AND(OR(COUNTRY_INFO!$H25=0,COUNTRY_INFO!$H25=4,COUNTRY_INFO!$H25=99),OR(COUNTRY_INFO!$J25=0,COUNTRY_INFO!$J25=4)),0,COUNTRY_INFO!$F25)) -> 15327 | F25: 22682 | G25: =IF(AND(INTRO!$E$37="Non endémique",INTRO!$E$41="Non endémique"),0,COUNTRY_INFO!Q25) -> 1 | H25: =IF(AND(INTRO!$E$37="Non endémique",INTRO!$E$41="Non endémique"),0,COUNTRY_INFO!S25) -> 2 | I25: =IF($G25=1,IVM!$G25,0) -> 0 | J25: 58100 | K25: 2 | L25: ALB | M25: =IF($L25="ALB", IF(INTRO!$E$39="Non endémique",IF($H25<>0,$D25*($H25-$G25),0),$D25*$H25), 0) -> 14710 | N25: 0 | P25: 14710 | Q25: =IF($L25="MBD", IF(INTRO!$E$39="Non endémique",IF($H25<>0,$D25*($H25-$G25),0),$D25*$H25),0) -> 0 | R25: 0 | T25: 0 | V25: 116200 | W25: 581 | Y25: 0 | Z25: 0 | AB25: 0 | AC25: 0
A26: =IF(AND(INTRO!$E$37="Non endémique",INTRO!$E$41="Non endémique")," ",IF(COUNTRY_INFO!A26=0," ",COUNTRY_INFO!A26)) -> GUINEE EQUATORIALE | B26: =IF(AND(INTRO!$E$37="Non endémique",INTRO!$E$41="Non endémique")," ",IF(COUNTRY_INFO!B26=0," ",COUNTRY_INFO!B26)) -> Welenzas | C26: =IF(AND(INTRO!$E$37="Non endémique",INTRO!$E$41="Non endémique")," ",IF(COUNTRY_INFO!C26=0," ",COUNTRY_INFO!C26)) -> Nsork | D26: =IF(AND(INTRO!$E$37="Non endémique",INTRO!$E$41="Non endémique"),0,IF(AND(OR(COUNTRY_INFO!$H26=0,COUNTRY_INFO!$H26=4,COUNTRY_INFO!$H26=99),OR(COUNTRY_INFO!$J26=0,COUNTRY_INFO!$J26=4)),0,COUNTRY_INFO!$E26)) -> 2175 | E26: =IF(AND(INTRO!$E$37="Non endémique",INTRO!$E$41="Non endémique"),0,IF(AND(OR(COUNTRY_INFO!$H26=0,COUNTRY_INFO!$H26=4,COUNTRY_INFO!$H26=99),OR(COUNTRY_INFO!$J26=0,COUNTRY_INFO!$J26=4)),0,COUNTRY_INFO!$F26)) -> 4532 | F26: 6707 | G26: =IF(AND(INTRO!$E$37="Non endémique",INTRO!$E$41="Non endémique"),0,COUNTRY_INFO!Q26) -> 1 | H26: =IF(AND(INTRO!$E$37="Non endémique",INTRO!$E$41="Non endémique"),0,COUNTRY_INFO!S26) -> 2 | I26: =IF($G26=1,IVM!$G26,0) -> 0 | J26: 17179 | K26: 2 | L26: ALB | M26: =IF($L26="ALB", IF(INTRO!$E$39="Non endémique",IF($H26<>0,$D26*($H26-$G26),0),$D26*$H26), 0) -> 4350 | N26: 0 | P26: 4350 | Q26: =IF($L26="MBD", IF(INTRO!$E$39="Non endémique",IF($H26<>0,$D26*($H26-$G26),0),$D26*$H26),0) -> 0 | R26: 0 | T26: 0 | V26: 34358 | W26: 172 | Y26: 0 | Z26: 0 | AB26: 0 | AC26: 0

Sheet PZQ
A1: Praziquantel (PZQ)
A2: Structure administrative, population ciblée par groupe d'âge, plan de traitement et information sur les comprimés
A4: TOTAL | D4: =SUM(D$9:D$1000) -> 88223 | E4: =SUM(E$9:E$1000) -> 48917.8 | F4: =SUM(F$9:F$1000) -> 137140.8 | I4: =SUM(I$9:I$1000) -> 0 | J4: 0 | K4: 0 | L4: 0 | M4: 0 | N4: 0 | O4: 0 | P4: 0 | Q4: 0 | R4: 0
A6: Structure administrative du pays | D6: Population nécessitant un traitement avec PZQ | G6: Plan de traitement | I6: Population cible | M6: Praziquantel (PZQ)
A7: Pays | B7: Région/Département | C7: District | D7: EAS | E7: Adultes | F7: Total | G7: SCH | H7: Tous EAS ciblés ? | I7: EAS | J7: EAS à un niveau inférieur | K7: Adultes | L7: Total | M7: EAS | N7: Adultes | O7: Total requis pour EAS | P7: Reste en stock | Q7: Comprimés devant être fournis | R7: Flacons (600mg) 1000 comprimés
A9: =IF(INTRO!$E$43="Non endémique"," ", IF(COUNTRY_INFO!A9=0," ",COUNTRY_INFO!A9)) -> GUINEE EQUATORIALE | B9: =IF(INTRO!$E$43="Non endémique"," ", IF(COUNTRY_INFO!B9=0," ",COUNTRY_INFO!B9)) -> Annobon | C9: =IF(INTRO!$E$43="Non endémique"," ", IF(COUNTRY_INFO!C9=0," ",COUNTRY_INFO!C9)) -> Annonbon | D9: =IF(INTRO!$E$43="Non endémique", 0, IF(COUNTRY_INFO!$K9>0, IF(COUNTRY_INFO!$K9=4, 0, IF(COUNTRY_INFO!$K9=1, COUNTRY_INFO!$F9*0.33, IF(COUNTRY_INFO!$K9=2, COUNTRY_INFO!$F9*0.5, COUNTRY_INFO!$F9))), 0)) -> 0 | E9: =IF(INTRO!$E$43="Non endémique", 0, IF(COUNTRY_INFO!$K9>0, IF(COUNTRY_INFO!$K9=4, 0, IF(COUNTRY_INFO!$K9=1, 0, IF(COUNTRY_INFO!$K9=2, COUNTRY_INFO!$G9*0.2, COUNTRY_INFO!$G9))), 0)) -> 0 | F9: =SUM(D9:E9) -> 0 | G9: =IF(INTRO!$E$43="Non endémique", "Non requis", COUNTRY_INFO!T9) -> 0 | I9: =IF($D9=0,0,IF(AND($G9>0,$H9<>"Oui"),D9,IF(AND($G9>0,$H9="Oui"),COUNTRY_INFO!$F9,0))) -> 0 | K9: =IF($G9>0,E9, 0) -> 0 | L9: =IF($J9=0,SUM(I9,K9),SUM(J9,K9)) -> 0 | M9: =IF($J9=0,$I9*2.5,$J9*2.5) -> 0 | N9: =$K9*3 -> 0 | O9: =M9 -> 0 | Q9: =IF($O9>$P9,O9-P9,0) -> 0 | R9: =ROUNDUP($O9/1000,0) -> 0
A10: =IF(INTRO!$E$43="Non endémique"," ", IF(COUNTRY_INFO!A10=0," ",COUNTRY_INFO!A10)) -> GUINEE EQUATORIALE | B10: =IF(INTRO!$E$43="Non endémique"," ", IF(COUNTRY_INFO!B10=0," ",COUNTRY_INFO!B10)) -> Bioko Norte | C10: =IF(INTRO!$E$43="Non endémique"," ", IF(COUNTRY_INFO!C10=0," ",COUNTRY_INFO!C10)) -> Baney | D10: =IF(INTRO!$E$43="Non endémique", 0, IF(COUNTRY_INFO!$K10>0, IF(COUNTRY_INFO!$K10=4, 0, IF(COUNTRY_INFO!$K10=1, COUNTRY_INFO!$F10*0.33, IF(COUNTRY_INFO!$K10=2, COUNTRY_INFO!$F10*0.5, COUNTRY_INFO!$F10))), 0)) -> 2277.66 | E10: =IF(INTRO!$E$43="Non endémique", 0, IF(COUNTRY_INFO!$K10>0, IF(COUNTRY_INFO!$K10=4, 0, IF(COUNTRY_INFO!$K10=1, 0, IF(COUNTRY_INFO!$K10=2, COUNTRY_INFO!$G10*0.2, COUNTRY_INFO!$G10))), 0)) -> 0 | F10: 2277.66 | G10: =IF(INTRO!$E$43="Non endémique", "Non requis", COUNTRY_INFO!T10) -> 0 | I10: =IF($D10=0,0,IF(AND($G10>0,$H10<>"Oui"),D10,IF(AND($G10>0,$H10="Oui"),COUNTRY_INFO!$F10,0))) -> 0 | K10: 0 | L10: 0 | M10: 0 | N10: 0 | O10: 0 | Q10: 0 | R10: 0
A11: =IF(INTRO!$E$43="Non endémique"," ", IF(COUNTRY_INFO!A11=0," ",COUNTRY_INFO!A11)) -> GUINEE EQUATORIALE | B11: =IF(INTRO!$E$43="Non endémique"," ", IF(COUNTRY_INFO!B11=0," ",COUNTRY_INFO!B11)) -> Bioko Norte | C11: =IF(INTRO!$E$43="Non endémique"," ", IF(COUNTRY_INFO!C11=0," ",COUNTRY_INFO!C11)) -> Malabo | D11: =IF(INTRO!$E$43="Non endémique", 0, IF(COUNTRY_INFO!$K11>0, IF(COUNTRY_INFO!$K11=4, 0, IF(COUNTRY_INFO!$K11=1, COUNTRY_INFO!$F11*0.33, IF(COUNTRY_INFO!$K11=2, COUNTRY_INFO!$F11*0.5, COUNTRY_INFO!$F11))), 0)) -> 20787 | E11: =IF(INTRO!$E$43="Non endémique", 0, IF(COUNTRY_INFO!$K11>0, IF(COUNTRY_INFO!$K11=4, 0, IF(COUNTRY_INFO!$K11=1, 0, IF(COUNTRY_INFO!$K11=2, COUNTRY_INFO!$G11*0.2, COUNTRY_INFO!$G11))), 0)) -> 23204.6 | F11: 43991.6 | G11: =IF(INTRO!$E$43="Non endémique", "Non requis", COUNTRY_INFO!T11) -> 0 | I11: =IF($D11=0,0,IF(AND($G11>0,$H11<>"Oui"),D11,IF(AND($G11>0,$H11="Oui"),COUNTRY_INFO!$F11,0))) -> 0 | K11: 0 | L11: 0 | M11: 0 | N11: 0 | O11: 0 | Q11: 0 | R11: 0
A12: =IF(INTRO!$E$43="Non endémique"," ", IF(COUNTRY_INFO!A12=0," ",COUNTRY_INFO!A12)) -> GUINEE EQUATORIALE | B12: =IF(INTRO!$E$43="Non endémique"," ", IF(COUNTRY_INFO!B12=0," ",COUNTRY_INFO!B12)) -> Bioko Sur | C12: =IF(INTRO!$E$43="Non endémique"," ", IF(COUNTRY_INFO!C12=0," ",COUNTRY_INFO!C12)) -> Luba | D12: =IF(INTRO!$E$43="Non endémique", 0, IF(COUNTRY_INFO!$K12>0, IF(COUNTRY_INFO!$K12=4, 0, IF(COUNTRY_INFO!$K12=1, COUNTRY_INFO!$F12*0.33, IF(COUNTRY_INFO!$K12=2, COUNTRY_INFO!$F12*0.5, COUNTRY_INFO!$F12))), 0)) -> 0 | E12: =IF(INTRO!$E$43="Non endémique", 0, IF(COUNTRY_INFO!$K12>0, IF(COUNTRY_INFO!$K12=4, 0, IF(COUNTRY_INFO!$K12=1, 0, IF(COUNTRY_INFO!$K12=2, COUNTRY_INFO!$G12*0.2, COUNTRY_INFO!$G12))), 0)) -> 0 | F12: 0 | G12: =IF(INTRO!$E$43="Non endémique", "Non requis", COUNTRY_INFO!T12) -> 0 | I12: =IF($D12=0,0,IF(AND($G12>0,$H12<>"Oui"),D12,IF(AND($G12>0,$H12="Oui"),COUNTRY_INFO!$F12,0))) -> 0 | K12: 0 | L12: 0 | M12: 0 | N12: 0 | O12: 0 | Q12: 0 | R12: 0
A13: =IF(INTRO!$E$43="Non endémique"," ", IF(COUNTRY_INFO!A13=0," ",COUNTRY_INFO!A13)) -> GUINEE EQUATORIALE | B13: =IF(INTRO!$E$43="Non endémique"," ", IF(COUNTRY_INFO!B13=0," ",COUNTRY_INFO!B13)) -> Bioko Sur | C13: =IF(INTRO!$E$43="Non endémique"," ", IF(COUNTRY_INFO!C13=0," ",COUNTRY_INFO!C13)) -> Riaba | D13: =IF(INTRO!$E$43="Non endémique", 0, IF(COUNTRY_INFO!$K13>0, IF(COUNTRY_INFO!$K13=4, 0, IF(COUNTRY_INFO!$K13=1, COUNTRY_INFO!$F13*0.33, IF(COUNTRY_INFO!$K13=2, COUNTRY_INFO!$F13*0.5, COUNTRY_INFO!$F13))), 0)) -> 0 | E13: =IF(INTRO!$E$43="Non endémique", 0, IF(COUNTRY_INFO!$K13>0, IF(COUNTRY_INFO!$K13=4, 0, IF(COUNTRY_INFO!$K13=1, 0, IF(COUNTRY_INFO!$K13=2, COUNTRY_INFO!$G13*0.2, COUNTRY_INFO!$G13))), 0)) -> 0 | F13: 0 | G13: =IF(INTRO!$E$43="Non endémique", "Non requis", COUNTRY_INFO!T13) -> 0 | I13: =IF($D13=0,0,IF(AND($G13>0,$H13<>"Oui"),D13,IF(AND($G13>0,$H13="Oui"),COUNTRY_INFO!$F13,0))) -> 0 | K13: 0 | L13: 0 | M13: 0 | N13: 0 | O13: 0 | Q13: 0 | R13: 0
A14: =IF(INTRO!$E$43="Non endémique"," ", IF(COUNTRY_INFO!A14=0," ",COUNTRY_INFO!A14)) -> GUINEE EQUATORIALE | B14: =IF(INTRO!$E$43="Non endémique"," ", IF(COUNTRY_INFO!B14=0," ",COUNTRY_INFO!B14)) -> Centro Sur | C14: =IF(INTRO!$E$43="Non endémique"," ", IF(COUNTRY_INFO!C14=0," ",COUNTRY_INFO!C14)) -> Acurenam | D14: =IF(INTRO!$E$43="Non endémique", 0, IF(COUNTRY_INFO!$K14>0, IF(COUNTRY_INFO!$K14=4, 0, IF(COUNTRY_INFO!$K14=1, COUNTRY_INFO!$F14*0.33, IF(COUNTRY_INFO!$K14=2, COUNTRY_INFO!$F14*0.5, COUNTRY_INFO!$F14))), 0)) -> 2476.32 | E14: =IF(INTRO!$E$43="Non endémique", 0, IF(COUNTRY_INFO!$K14>0, IF(COUNTRY_INFO!$K14=4, 0, IF(COUNTRY_INFO!$K14=1, 0, IF(COUNTRY_INFO!$K14=2, COUNTRY_INFO!$G14*0.2, COUNTRY_INFO!$G14))), 0)) -> 0 | F14: 2476.32 | G14: =IF(INTRO!$E$43="Non endémique", "Non requis", COUNTRY_INFO!T14) -> 0 | I14: =IF($D14=0,0,IF(AND($G14>0,$H14<>"Oui"),D14,IF(AND($G14>0,$H14="Oui"),COUNTRY_INFO!$F14,0))) -> 0 | K14: 0 | L14: 0 | M14: 0 | N14: 0 | O14: 0 | Q14: 0 | R14: 0
A15: =IF(INTRO!$E$43="Non endémique"," ", IF(COUNTRY_INFO!A15=0," ",COUNTRY_INFO!A15)) -> GUINEE EQUATORIALE | B15: =IF(INTRO!$E$43="Non endémique"," ", IF(COUNTRY_INFO!B15=0," ",COUNTRY_INFO!B15)) -> Centro Sur | C15: =IF(INTRO!$E$43="Non endémique"," ", IF(COUNTRY_INFO!C15=0," ",COUNTRY_INFO!C15)) -> Evinayong | D15: =IF(INTRO!$E$43="Non endémique", 0, IF(COUNTRY_INFO!$K15>0, IF(COUNTRY_INFO!$K15=4, 0, IF(COUNTRY_INFO!$K15=1, COUNTRY_INFO!$F15*0.33, IF(COUNTRY_INFO!$K15=2, COUNTRY_INFO!$F15*0.5, COUNTRY_INFO!$F15))), 0)) -> 4546.41 | E15: =IF(INTRO!$E$43="Non endémique", 0, IF(COUNTRY_INFO!$K15>0, IF(COUNTRY_INFO!$K15=4, 0, IF(COUNTRY_INFO!$K15=1, 0, IF(COUNTRY_INFO!$K15=2, COUNTRY_INFO!$G15*0.2, COUNTRY_INFO!$G15))), 0)) -> 0 | F15: 4546.41 | G15: =IF(INTRO!$E$43="Non endémique", "Non requis", COUNTRY_INFO!T15) -> 0 | I15: =IF($D15=0,0,IF(AND($G15>0,$H15<>"Oui"),D15,IF(AND($G15>0,$H15="Oui"),COUNTRY_INFO!$F15,0))) -> 0 | K15: 0 | L15: 0 | M15: 0 | N15: 0 | O15: 0 | Q15: 0 | R15: 0
A16: =IF(INTRO!$E$43="Non endémique"," ", IF(COUNTRY_INFO!A16=0," ",COUNTRY_INFO!A16)) -> GUINEE EQUATORIALE | B16: =IF(INTRO!$E$43="Non endémique"," ", IF(COUNTRY_INFO!B16=0," ",COUNTRY_INFO!B16)) -> Centro Sur | C16: =IF(INTRO!$E$43="Non endémique"," ", IF(COUNTRY_INFO!C16=0," ",COUNTRY_INFO!C16)) -> Niefang | D16: =IF(INTRO!$E$43="Non endémique", 0, IF(COUNTRY_INFO!$K16>0, IF(COUNTRY_INFO!$K16=4, 0, IF(COUNTRY_INFO!$K16=1, COUNTRY_INFO!$F16*0.33, IF(COUNTRY_INFO!$K16=2, COUNTRY_INFO!$F16*0.5, COUNTRY_INFO!$F16))), 0)) -> 5824.5 | E16: =IF(INTRO!$E$43="Non endémique", 0, IF(COUNTRY_INFO!$K16>0, IF(COUNTRY_INFO!$K16=4, 0, IF(COUNTRY_INFO!$K16=1, 0, IF(COUNTRY_INFO!$K16=2, COUNTRY_INFO!$G16*0.2, COUNTRY_INFO!$G16))), 0)) -> 0 | F16: 5824.5 | G16: =IF(INTRO!$E$43="Non endémique", "Non requis", COUNTRY_INFO!T16) -> 0 | I16: =IF($D16=0,0,IF(AND($G16>0,$H16<>"Oui"),D16,IF(AND($G16>0,$H16="Oui"),COUNTRY_INFO!$F16,0))) -> 0 | K16: 0 | L16: 0 | M16: 0 | N16: 0 | O16: 0 | Q16: 0 | R16: 0
A17: =IF(INTRO!$E$43="Non endémique"," ", IF(COUNTRY_INFO!A17=0," ",COUNTRY_INFO!A17)) -> GUINEE EQUATORIALE | B17: =IF(INTRO!$E$43="Non endémique"," ", IF(COUNTRY_INFO!B17=0," ",COUNTRY_INFO!B17)) -> Kientem | C17: =IF(INTRO!$E$43="Non endémique"," ", IF(COUNTRY_INFO!C17=0," ",COUNTRY_INFO!C17)) -> Ebebiyin | D17: =IF(INTRO!$E$43="Non endémique", 0, IF(COUNTRY_INFO!$K17>0, IF(COUNTRY_INFO!$K17=4, 0, IF(COUNTRY_INFO!$K17=1, COUNTRY_INFO!$F17*0.33, IF(COUNTRY_INFO!$K17=2, COUNTRY_INFO!$F17*0.5, COUNTRY_INFO!$F17))), 0)) -> 9699.36 | E17: =IF(INTRO!$E$43="Non endémique", 0, IF(COUNTRY_INFO!$K17>0, IF(COUNTRY_INFO!$K17=4, 0, IF(COUNTRY_INFO!$K17=1, 0, IF(COUNTRY_INFO!$K17=2, COUNTRY_INFO!$G17*0.2, COUNTRY_INFO!$G17))), 0)) -> 0 | F17: 9699.36 | G17: =IF(INTRO!$E$43="Non endémique", "Non requis", COUNTRY_INFO!T17) -> 0 | I17: =IF($D17=0,0,IF(AND($G17>0,$H17<>"Oui"),D17,IF(AND($G17>0,$H17="Oui"),COUNTRY_INFO!$F17,0))) -> 0 | K17: 0 | L17: 0 | M17: 0 | N17: 0 | O17: 0 | Q17: 0 | R17: 0
A18: =IF(INTRO!$E$43="Non endémique"," ", IF(COUNTRY_INFO!A18=0," ",COUNTRY_INFO!A18)) -> GUINEE EQUATORIALE | B18: =IF(INTRO!$E$43="Non endémique"," ", IF(COUNTRY_INFO!B18=0," ",COUNTRY_INFO!B18)) -> Kientem | C18: =IF(INTRO!$E$43="Non endémique"," ", IF(COUNTRY_INFO!C18=0," ",COUNTRY_INFO!C18)) -> Micomiseng | D18: =IF(INTRO!$E$43="Non endémique", 0, IF(COUNTRY_INFO!$K18>0, IF(COUNTRY_INFO!$K18=4, 0, IF(COUNTRY_INFO!$K18=1, COUNTRY_INFO!$F18*0.33, IF(COUNTRY_INFO!$K18=2, COUNTRY_INFO!$F18*0.5, COUNTRY_INFO!$F18))), 0)) -> 6377.25 | E18: =IF(INTRO!$E$43="Non endémique", 0, IF(COUNTRY_INFO!$K18>0, IF(COUNTRY_INFO!$K18=4, 0, IF(COUNTRY_INFO!$K18=1, 0, IF(COUNTRY_INFO!$K18=2, COUNTRY_INFO!$G18*0.2, COUNTRY_INFO!$G18))), 0)) -> 0 | F18: 6377.25 | G18: =IF(INTRO!$E$43="Non endémique", "Non requis", COUNTRY_INFO!T18) -> 0 | I18: =IF($D18=0,0,IF(AND($G18>0,$H18<>"Oui"),D18,IF(AND($G18>0,$H18="Oui"),COUNTRY_INFO!$F18,0))) -> 0 | K18: 0 | L18: 0 | M18: 0 | N18: 0 | O18: 0 | Q18: 0 | R18: 0
A19: =IF(INTRO!$E$43="Non endémique"," ", IF(COUNTRY_INFO!A19=0," ",COUNTRY_INFO!A19)) -> GUINEE EQUATORIALE | B19: =IF(INTRO!$E$43="Non endémique"," ", IF(COUNTRY_INFO!B19=0," ",COUNTRY_INFO!B19)) -> Kientem | C19: =IF(INTRO!$E$43="Non endémique"," ", IF(COUNTRY_INFO!C19=0," ",COUNTRY_INFO!C19)) -> Nsoknsomo | D19: =IF(INTRO!$E$43="Non endémique", 0, IF(COUNTRY_INFO!$K19>0, IF(COUNTRY_INFO!$K19=4, 0, IF(COUNTRY_INFO!$K19=1, COUNTRY_INFO!$F19*0.33, IF(COUNTRY_INFO!$K19=2, COUNTRY_INFO!$F19*0.5, COUNTRY_INFO!$F19))), 0)) -> 3676.53 | E19: =IF(INTRO!$E$43="Non endémique", 0, IF(COUNTRY_INFO!$K19>0, IF(COUNTRY_INFO!$K19=4, 0, IF(COUNTRY_INFO!$K19=1, 0, IF(COUNTRY_INFO!$K19=2, COUNTRY_INFO!$G19*0.2, COUNTRY_INFO!$G19))), 0)) -> 0 | F19: 3676.53 | G19: =IF(INTRO!$E$43="Non endémique", "Non requis", COUNTRY_INFO!T19) -> 0 | I19: =IF($D19=0,0,IF(AND($G19>0,$H19<>"Oui"),D19,IF(AND($G19>0,$H19="Oui"),COUNTRY_INFO!$F19,0))) -> 0 | K19: 0 | L19: 0 | M19: 0 | N19: 0 | O19: 0 | Q19: 0 | R19: 0
A20: =IF(INTRO!$E$43="Non endémique"," ", IF(COUNTRY_INFO!A20=0," ",COUNTRY_INFO!A20)) -> GUINEE EQUATORIALE | B20: =IF(INTRO!$E$43="Non endémique"," ", IF(COUNTRY_INFO!B20=0," ",COUNTRY_INFO!B20)) -> Litoral | C20: =IF(INTRO!$E$43="Non endémique"," ", IF(COUNTRY_INFO!C20=0," ",COUNTRY_INFO!C20)) -> Bata | D20: =IF(INTRO!$E$43="Non endémique", 0, IF(COUNTRY_INFO!$K20>0, IF(COUNTRY_INFO!$K20=4, 0, IF(COUNTRY_INFO!$K20=1, COUNTRY_INFO!$F20*0.33, IF(COUNTRY_INFO!$K20=2, COUNTRY_INFO!$F20*0.5, COUNTRY_INFO!$F20))), 0)) -> 23034.5 | E20: =IF(INTRO!$E$43="Non endémique", 0, IF(COUNTRY_INFO!$K20>0, IF(COUNTRY_INFO!$K20=4, 0, IF(COUNTRY_INFO!$K20=1, 0, IF(COUNTRY_INFO!$K20=2, COUNTRY_INFO!$G20*0.2, COUNTRY_INFO!$G20))), 0)) -> 25713.2 | F20: 48747.7 | G20: =IF(INTRO!$E$43="Non endémique", "Non requis", COUNTRY_INFO!T20) -> 0 | I20: =IF($D20=0,0,IF(AND($G20>0,$H20<>"Oui"),D20,IF(AND($G20>0,$H20="Oui"),COUNTRY_INFO!$F20,0))) -> 0 | K20: 0 | L20: 0 | M20: 0 | N20: 0 | O20: 0 | Q20: 0 | R20: 0
A21: =IF(INTRO!$E$43="Non endémique"," ", IF(COUNTRY_INFO!A21=0," ",COUNTRY_INFO!A21)) -> GUINEE EQUATORIALE | B21: =IF(INTRO!$E$43="Non endémique"," ", IF(COUNTRY_INFO!B21=0," ",COUNTRY_INFO!B21)) -> Litoral | C21: =IF(INTRO!$E$43="Non endémique"," ", IF(COUNTRY_INFO!C21=0," ",COUNTRY_INFO!C21)) -> Kogo | D21: =IF(INTRO!$E$43="Non endémique", 0, IF(COUNTRY_INFO!$K21>0, IF(COUNTRY_INFO!$K21=4, 0, IF(COUNTRY_INFO!$K21=1, COUNTRY_INFO!$F21*0.33, IF(COUNTRY_INFO!$K21=2, COUNTRY_INFO!$F21*0.5, COUNTRY_INFO!$F21))), 0)) -> 3109.92 | E21: =IF(INTRO!$E$43="Non endémique", 0, IF(COUNTRY_INFO!$K21>0, IF(COUNTRY_INFO!$K21=4, 0, IF(COUNTRY_INFO!$K21=1, 0, IF(COUNTRY_INFO!$K21=2, COUNTRY_INFO!$G21*0.2, COUNTRY_INFO!$G21))), 0)) -> 0 | F21: 3109.92 | G21: =IF(INTRO!$E$43="Non endémique", "Non requis", COUNTRY_INFO!T21) -> 0 | I21: =IF($D21=0,0,IF(AND($G21>0,$H21<>"Oui"),D21,IF(AND($G21>0,$H21="Oui"),COUNTRY_INFO!$F21,0))) -> 0 | K21: 0 | L21: 0 | M21: 0 | N21: 0 | O21: 0 | Q21: 0 | R21: 0
A22: =IF(INTRO!$E$43="Non endémique"," ", IF(COUNTRY_INFO!A22=0," ",COUNTRY_INFO!A22)) -> GUINEE EQUATORIALE | B22: =IF(INTRO!$E$43="Non endémique"," ", IF(COUNTRY_INFO!B22=0," ",COUNTRY_INFO!B22)) -> Litoral | C22: =IF(INTRO!$E$43="Non endémique"," ", IF(COUNTRY_INFO!C22=0," ",COUNTRY_INFO!C22)) -> Mbini | D22: =IF(INTRO!$E$43="Non endémique", 0, IF(COUNTRY_INFO!$K22>0, IF(COUNTRY_INFO!$K22=4, 0, IF(COUNTRY_INFO!$K22=1, COUNTRY_INFO!$F22*0.33, IF(COUNTRY_INFO!$K22=2, COUNTRY_INFO!$F22*0.5, COUNTRY_INFO!$F22))), 0)) -> 2987.82 | E22: =IF(INTRO!$E$43="Non endémique", 0, IF(COUNTRY_INFO!$K22>0, IF(COUNTRY_INFO!$K22=4, 0, IF(COUNTRY_INFO!$K22=1, 0, IF(COUNTRY_INFO!$K22=2, COUNTRY_INFO!$G22*0.2, COUNTRY_INFO!$G22))), 0)) -> 0 | F22: 2987.82 | G22: =IF(INTRO!$E$43="Non endémique", "Non requis", COUNTRY_INFO!T22) -> 0 | I22: =IF($D22=0,0,IF(AND($G22>0,$H22<>"Oui"),D22,IF(AND($G22>0,$H22="Oui"),COUNTRY_INFO!$F22,0))) -> 0 | K22: 0 | L22: 0 | M22: 0 | N22: 0 | O22: 0 | Q22: 0 | R22: 0
A23: =IF(INTRO!$E$43="Non endémique"," ", IF(COUNTRY_INFO!A23=0," ",COUNTRY_INFO!A23)) -> GUINEE EQUATORIALE | B23: =IF(INTRO!$E$43="Non endémique"," ", IF(COUNTRY_INFO!B23=0," ",COUNTRY_INFO!B23)) -> Welenzas | C23: =IF(INTRO!$E$43="Non endémique"," ", IF(COUNTRY_INFO!C23=0," ",COUNTRY_INFO!C23)) -> Akonibe | D23: =IF(INTRO!$E$43="Non endémique", 0, IF(COUNTRY_INFO!$K23>0, IF(COUNTRY_INFO!$K23=4, 0, IF(COUNTRY_INFO!$K23=1, COUNTRY_INFO!$F23*0.33, IF(COUNTRY_INFO!$K23=2, COUNTRY_INFO!$F23*0.5, COUNTRY_INFO!$F23))), 0)) -> 1930.17 | E23: =IF(INTRO!$E$43="Non endémique", 0, IF(COUNTRY_INFO!$K23>0, IF(COUNTRY_INFO!$K23=4, 0, IF(COUNTRY_INFO!$K23=1, 0, IF(COUNTRY_INFO!$K23=2, COUNTRY_INFO!$G23*0.2, COUNTRY_INFO!$G23))), 0)) -> 0 | F23: 1930.17 | G23: =IF(INTRO!$E$43="Non endémique", "Non requis", COUNTRY_INFO!T23) -> 0 | I23: =IF($D23=0,0,IF(AND($G23>0,$H23<>"Oui"),D23,IF(AND($G23>0,$H23="Oui"),COUNTRY_INFO!$F23,0))) -> 0 | K23: 0 | L23: 0 | M23: 0 | N23: 0 | O23: 0 | Q23: 0 | R23: 0
A24: =IF(INTRO!$E$43="Non endémique"," ", IF(COUNTRY_INFO!A24=0," ",COUNTRY_INFO!A24)) -> GUINEE EQUATORIALE | B24: =IF(INTRO!$E$43="Non endémique"," ", IF(COUNTRY_INFO!B24=0," ",COUNTRY_INFO!B24)) -> Welenzas | C24: =IF(INTRO!$E$43="Non endémique"," ", IF(COUNTRY_INFO!C24=0," ",COUNTRY_INFO!C24)) -> Anisok | D24: =IF(INTRO!$E$43="Non endémique", 0, IF(COUNTRY_INFO!$K24>0, IF(COUNTRY_INFO!$K24=4, 0, IF(COUNTRY_INFO!$K24=1, COUNTRY_INFO!$F24*0.33, IF(COUNTRY_INFO!$K24=2, COUNTRY_INFO!$F24*0.5, COUNTRY_INFO!$F24))), 0)) -> 0 | E24: =IF(INTRO!$E$43="Non endémique", 0, IF(COUNTRY_INFO!$K24>0, IF(COUNTRY_INFO!$K24=4, 0, IF(COUNTRY_INFO!$K24=1, 0, IF(COUNTRY_INFO!$K24=2, COUNTRY_INFO!$G24*0.2, COUNTRY_INFO!$G24))), 0)) -> 0 | F24: 0 | G24: =IF(INTRO!$E$43="Non endémique", "Non requis", COUNTRY_INFO!T24) -> 0 | I24: =IF($D24=0,0,IF(AND($G24>0,$H24<>"Oui"),D24,IF(AND($G24>0,$H24="Oui"),COUNTRY_INFO!$F24,0))) -> 0 | K24: 0 | L24: 0 | M24: 0 | N24: 0 | O24: 0 | Q24: 0 | R24: 0
A25: =IF(INTRO!$E$43="Non endémique"," ", IF(COUNTRY_INFO!A25=0," ",COUNTRY_INFO!A25)) -> GUINEE EQUATORIALE | B25: =IF(INTRO!$E$43="Non endémique"," ", IF(COUNTRY_INFO!B25=0," ",COUNTRY_INFO!B25)) -> Welenzas | C25: =IF(INTRO!$E$43="Non endémique"," ", IF(COUNTRY_INFO!C25=0," ",COUNTRY_INFO!C25)) -> Mongomo | D25: =IF(INTRO!$E$43="Non endémique", 0, IF(COUNTRY_INFO!$K25>0, IF(COUNTRY_INFO!$K25=4, 0, IF(COUNTRY_INFO!$K25=1, COUNTRY_INFO!$F25*0.33, IF(COUNTRY_INFO!$K25=2, COUNTRY_INFO!$F25*0.5, COUNTRY_INFO!$F25))), 0)) -> 0 | E25: =IF(INTRO!$E$43="Non endémique", 0, IF(COUNTRY_INFO!$K25>0, IF(COUNTRY_INFO!$K25=4, 0, IF(COUNTRY_INFO!$K25=1, 0, IF(COUNTRY_INFO!$K25=2, COUNTRY_INFO!$G25*0.2, COUNTRY_INFO!$G25))), 0)) -> 0 | F25: 0 | G25: =IF(INTRO!$E$43="Non endémique", "Non requis", COUNTRY_INFO!T25) -> 0 | I25: =IF($D25=0,0,IF(AND($G25>0,$H25<>"Oui"),D25,IF(AND($G25>0,$H25="Oui"),COUNTRY_INFO!$F25,0))) -> 0 | K25: 0 | L25: 0 | M25: 0 | N25: 0 | O25: 0 | Q25: 0 | R25: 0
A26: =IF(INTRO!$E$43="Non endémique"," ", IF(COUNTRY_INFO!A26=0," ",COUNTRY_INFO!A26)) -> GUINEE EQUATORIALE | B26: =IF(INTRO!$E$43="Non endémique"," ", IF(COUNTRY_INFO!B26=0," ",COUNTRY_INFO!B26)) -> Welenzas | C26: =IF(INTRO!$E$43="Non endémique"," ", IF(COUNTRY_INFO!C26=0," ",COUNTRY_INFO!C26)) -> Nsork | D26: =IF(INTRO!$E$43="Non endémique", 0, IF(COUNTRY_INFO!$K26>0, IF(COUNTRY_INFO!$K26=4, 0, IF(COUNTRY_INFO!$K26=1, COUNTRY_INFO!$F26*0.33, IF(COUNTRY_INFO!$K26=2, COUNTRY_INFO!$F26*0.5, COUNTRY_INFO!$F26))), 0)) -> 1495.56 | E26: =IF(INTRO!$E$43="Non endémique", 0, IF(COUNTRY_INFO!$K26>0, IF(COUNTRY_INFO!$K26=4, 0, IF(COUNTRY_INFO!$K26=1, 0, IF(COUNTRY_INFO!$K26=2, COUNTRY_INFO!$G26*0.2, COUNTRY_INFO!$G26))), 0)) -> 0 | F26: 1495.56 | G26: =IF(INTRO!$E$43="Non endémique", "Non requis", COUNTRY_INFO!T26) -> 0 | I26: =IF($D26=0,0,IF(AND($G26>0,$H26<>"Oui"),D26,IF(AND($G26>0,$H26="Oui"),COUNTRY_INFO!$F26,0))) -> 0 | K26: 0 | L26: 0 | M26: 0 | N26: 0 | O26: 0 | Q26: 0 | R26: 0

Sheet IVM
A1: Ivermectine (IVM)
A2: Structure administrative, population ciblée par groupe d'âge, plan de traitement et information sur les comprimés
A4: TOTAL | D4: =SUM(D$9:D$1000) -> 806214 | G4: =SUM(G$9:G$1000) -> 0 | H4: 0 | I4: 0 | J4: 0 | K4: 0 | L4: 0 | M4: 0 | N4: 0 | O4: 0 | P4: 0 | Q4: 0
A6: Structure administrative du pays | E6: Plan de traitement | G6: Population cible | K6: Ivermectine (IVM)
A7: Pays | B7: Région/Département | C7: District | D7: Population nécessitant un traitement avec IVM | E7: FL | F7: Oncho | G7: FL | H7: Oncho | K7: FL uniquement | L7: Oncho uniquement | M7: FL+Oncho | N7: Total requis | O7: Reste en stock | P7: Comprimés devant être fournis | Q7: Flacons (3mg) 500 comprimés
H8: dans le district | I8: dans les village | J8: total
A9: =IF(INTRO!$E$39="Non endémique"," ",IF(COUNTRY_INFO!A9=0," ",COUNTRY_INFO!A9)) -> GUINEE EQUATORIALE | B9: =IF(INTRO!$E$39="Non endémique"," ",IF(COUNTRY_INFO!B9=0," ",COUNTRY_INFO!B9)) -> Annobon | C9: =IF(INTRO!$E$39="Non endémique"," ",IF(COUNTRY_INFO!C9=0," ",COUNTRY_INFO!C9)) -> Annonbon | D9: =IF(INTRO!$E$39="Non endémique",0,IF(INTRO!$E$39="Endémique mais pas de CP",IF(COUNTRY_INFO!$H9=1,COUNTRY_INFO!F9+COUNTRY_INFO!G9,0),IF(COUNTRY_INFO!$H9=1,COUNTRY_INFO!F9+COUNTRY_INFO!G9,IF(COUNTRY_INFO!$I9=1,IF(COUNTRY_INFO!N9>=(COUNTRY_INFO!F9+COUNTRY_INFO!G9),COUNTRY_INFO!F9+COUNTRY_INFO!G9,COUNTRY_INFO!$N9),0)))) -> 0 | E9: =IF(AND(INTRO!$E$39="Non endémique",INTRO!$E$37="Non endémique"),"Non requis",IF(INTRO!$E$39="Non endémique","Traiter avec DEC",COUNTRY_INFO!Q9)) -> 0 | F9: =IF(INTRO!$E$39<>"Non endémique",COUNTRY_INFO!R9,"Non requis") -> 0 | G9: =IF(COUNTRY_INFO!H9=1, IF($E9=1,IF(ALB_MBD!$J9<>" ",COUNTRY_INFO!F9+COUNTRY_INFO!G9-ALB_MBD!$J9,COUNTRY_INFO!F9+COUNTRY_INFO!G9), 0),0) -> 0 | H9: =IF(INTRO!$E$39<>"Endémique",0, IF(AND(COUNTRY_INFO!$I9=1,$F9<>0),IF(COUNTRY_INFO!N9>=(COUNTRY_INFO!F9+COUNTRY_INFO!G9),COUNTRY_INFO!F9+COUNTRY_INFO!G9,COUNTRY_INFO!$N9), 0)) -> 0 | J9: =IF(I9=0,H9,IF(I9>H9,H9,I9)) -> 0 | K9: =IF(G9<J9,0,IF($E9=1, (G9-J9)*2.8, 0)) -> 0 | L9: =IF($E9<$F9, J9*(F9-E9)*2.8, 0) -> 0 | M9: =IF(AND($E9=1, $F9<>0), J9*2.8, 0) -> 0 | N9: =SUM(K9:M9) -> 0 | P9: =IF($N9>$O9,$N9-$O9,0) -> 0 | Q9: =ROUNDUP($N9/500,0) -> 0
A10: =IF(INTRO!$E$39="Non endémique"," ",IF(COUNTRY_INFO!A10=0," ",COUNTRY_INFO!A10)) -> GUINEE EQUATORIALE | B10: =IF(INTRO!$E$39="Non endémique"," ",IF(COUNTRY_INFO!B10=0," ",COUNTRY_INFO!B10)) -> Bioko Norte | C10: =IF(INTRO!$E$39="Non endémique"," ",IF(COUNTRY_INFO!C10=0," ",COUNTRY_INFO!C10)) -> Baney | D10: =IF(INTRO!$E$39="Non endémique",0,IF(INTRO!$E$39="Endémique mais pas de CP",IF(COUNTRY_INFO!$H10=1,COUNTRY_INFO!F10+COUNTRY_INFO!G10,0),IF(COUNTRY_INFO!$H10=1,COUNTRY_INFO!F10+COUNTRY_INFO!G10,IF(COUNTRY_INFO!$I10=1,IF(COUNTRY_INFO!N10>=(COUNTRY_INFO!F10+COUNTRY_INFO!G10),COUNTRY_INFO!F10+COUNTRY_INFO!G10,COUNTRY_INFO!$N10),0)))) -> 26164 | E10: =IF(AND(INTRO!$E$39="Non endémique",INTRO!$E$37="Non endémique"),"Non requis",IF(INTRO!$E$39="Non endémique","Traiter avec DEC",COUNTRY_INFO!Q10)) -> 1 | F10: =IF(INTRO!$E$39<>"Non endémique",COUNTRY_INFO!R10,"Non requis") -> 0 | G10: =IF(COUNTRY_INFO!H10=1, IF($E10=1,IF(ALB_MBD!$J10<>" ",COUNTRY_INFO!F10+COUNTRY_INFO!G10-ALB_MBD!$J10,COUNTRY_INFO!F10+COUNTRY_INFO!G10), 0),0) -> 0 | H10: =IF(INTRO!$E$39<>"Endémique",0, IF(AND(COUNTRY_INFO!$I10=1,$F10<>0),IF(COUNTRY_INFO!N10>=(COUNTRY_INFO!F10+COUNTRY_INFO!G10),COUNTRY_INFO!F10+COUNTRY_INFO!G10,COUNTRY_INFO!$N10), 0)) -> 0 | J10: 0 | K10: 0 | L10: 0 | M10: 0 | N10: 0 | P10: 0 | Q10: 0
A11: =IF(INTRO!$E$39="Non endémique"," ",IF(COUNTRY_INFO!A11=0," ",COUNTRY_INFO!A11)) -> GUINEE EQUATORIALE | B11: =IF(INTRO!$E$39="Non endémique"," ",IF(COUNTRY_INFO!B11=0," ",COUNTRY_INFO!B11)) -> Bioko Norte | C11: =IF(INTRO!$E$39="Non endémique"," ",IF(COUNTRY_INFO!C11=0," ",COUNTRY_INFO!C11)) -> Malabo | D11: =IF(INTRO!$E$39="Non endémique",0,IF(INTRO!$E$39="Endémique mais pas de CP",IF(COUNTRY_INFO!$H11=1,COUNTRY_INFO!F11+COUNTRY_INFO!G11,0),IF(COUNTRY_INFO!$H11=1,COUNTRY_INFO!F11+COUNTRY_INFO!G11,IF(COUNTRY_INFO!$I11=1,IF(COUNTRY_INFO!N11>=(COUNTRY_INFO!F11+COUNTRY_INFO!G11),COUNTRY_INFO!F11+COUNTRY_INFO!G11,COUNTRY_INFO!$N11),0)))) -> 0 | E11: =IF(AND(INTRO!$E$39="Non endémique",INTRO!$E$37="Non endémique"),"Non requis",IF(INTRO!$E$39="Non endémique","Traiter avec DEC",COUNTRY_INFO!Q11)) -> 0 | F11: =IF(INTRO!$E$39<>"Non endémique",COUNTRY_INFO!R11,"Non requis") -> 0 | G11: =IF(COUNTRY_INFO!H11=1, IF($E11=1,IF(ALB_MBD!$J11<>" ",COUNTRY_INFO!F11+COUNTRY_INFO!G11-ALB_MBD!$J11,COUNTRY_INFO!F11+COUNTRY_INFO!G11), 0),0) -> 0 | H11: =IF(INTRO!$E$39<>"Endémique",0, IF(AND(COUNTRY_INFO!$I11=1,$F11<>0),IF(COUNTRY_INFO!N11>=(COUNTRY_INFO!F11+COUNTRY_INFO!G11),COUNTRY_INFO!F11+COUNTRY_INFO!G11,COUNTRY_INFO!$N11), 0)) -> 0 | J11: 0 | K11: 0 | L11: 0 | M11: 0 | N11: 0 | P11: 0 | Q11: 0
A12: =IF(INTRO!$E$39="Non endémique"," ",IF(COUNTRY_INFO!A12=0," ",COUNTRY_INFO!A12)) -> GUINEE EQUATORIALE | B12: =IF(INTRO!$E$39="Non endémique"," ",IF(COUNTRY_INFO!B12=0," ",COUNTRY_INFO!B12)) -> Bioko Sur | C12: =IF(INTRO!$E$39="Non endémique"," ",IF(COUNTRY_INFO!C12=0," ",COUNTRY_INFO!C12)) -> Luba | D12: =IF(INTRO!$E$39="Non endémique",0,IF(INTRO!$E$39="Endémique mais pas de CP",IF(COUNTRY_INFO!$H12=1,COUNTRY_INFO!F12+COUNTRY_INFO!G12,0),IF(COUNTRY_INFO!$H12=1,COUNTRY_INFO!F12+COUNTRY_INFO!G12,IF(COUNTRY_INFO!$I12=1,IF(COUNTRY_INFO!N12>=(COUNTRY_INFO!F12+COUNTRY_INFO!G12),COUNTRY_INFO!F12+COUNTRY_INFO!G12,COUNTRY_INFO!$N12),0)))) -> 0 | E12: =IF(AND(INTRO!$E$39="Non endémique",INTRO!$E$37="Non endémique"),"Non requis",IF(INTRO!$E$39="Non endémique","Traiter avec DEC",COUNTRY_INFO!Q12)) -> 0 | F12: =IF(INTRO!$E$39<>"Non endémique",COUNTRY_INFO!R12,"Non requis") -> 0 | G12: =IF(COUNTRY_INFO!H12=1, IF($E12=1,IF(ALB_MBD!$J12<>" ",COUNTRY_INFO!F12+COUNTRY_INFO!G12-ALB_MBD!$J12,COUNTRY_INFO!F12+COUNTRY_INFO!G12), 0),0) -> 0 | H12: =IF(INTRO!$E$39<>"Endémique",0, IF(AND(COUNTRY_INFO!$I12=1,$F12<>0),IF(COUNTRY_INFO!N12>=(COUNTRY_INFO!F12+COUNTRY_INFO!G12),COUNTRY_INFO!F12+COUNTRY_INFO!G12,COUNTRY_INFO!$N12), 0)) -> 0 | J12: 0 | K12: 0 | L12: 0 | M12: 0 | N12: 0 | P12: 0 | Q12: 0
A13: =IF(INTRO!$E$39="Non endémique"," ",IF(COUNTRY_INFO!A13=0," ",COUNTRY_INFO!A13)) -> GUINEE EQUATORIALE | B13: =IF(INTRO!$E$39="Non endémique"," ",IF(COUNTRY_INFO!B13=0," ",COUNTRY_INFO!B13)) -> Bioko Sur | C13: =IF(INTRO!$E$39="Non endémique"," ",IF(COUNTRY_INFO!C13=0," ",COUNTRY_INFO!C13)) -> Riaba | D13: =IF(INTRO!$E$39="Non endémique",0,IF(INTRO!$E$39="Endémique mais pas de CP",IF(COUNTRY_INFO!$H13=1,COUNTRY_INFO!F13+COUNTRY_INFO!G13,0),IF(COUNTRY_INFO!$H13=1,COUNTRY_INFO!F13+COUNTRY_INFO!G13,IF(COUNTRY_INFO!$I13=1,IF(COUNTRY_INFO!N13>=(COUNTRY_INFO!F13+COUNTRY_INFO!G13),COUNTRY_INFO!F13+COUNTRY_INFO!G13,COUNTRY_INFO!$N13),0)))) -> 8137 | E13: =IF(AND(INTRO!$E$39="Non endémique",INTRO!$E$37="Non endémique"),"Non requis",IF(INTRO!$E$39="Non endémique","Traiter avec DEC",COUNTRY_INFO!Q13)) -> 1 | F13: =IF(INTRO!$E$39<>"Non endémique",COUNTRY_INFO!R13,"Non requis") -> 0 | G13: =IF(COUNTRY_INFO!H13=1, IF($E13=1,IF(ALB_MBD!$J13<>" ",COUNTRY_INFO!F13+COUNTRY_INFO!G13-ALB_MBD!$J13,COUNTRY_INFO!F13+COUNTRY_INFO!G13), 0),0) -> 0 | H13: =IF(INTRO!$E$39<>"Endémique",0, IF(AND(COUNTRY_INFO!$I13=1,$F13<>0),IF(COUNTRY_INFO!N13>=(COUNTRY_INFO!F13+COUNTRY_INFO!G13),COUNTRY_INFO!F13+COUNTRY_INFO!G13,COUNTRY_INFO!$N13), 0)) -> 0 | J13: 0 | K13: 0 | L13: 0 | M13: 0 | N13: 0 | P13: 0 | Q13: 0
A14: =IF(INTRO!$E$39="Non endémique"," ",IF(COUNTRY_INFO!A14=0," ",COUNTRY_INFO!A14)) -> GUINEE EQUATORIALE | B14: =IF(INTRO!$E$39="Non endémique"," ",IF(COUNTRY_INFO!B14=0," ",COUNTRY_INFO!B14)) -> Centro Sur | C14: =IF(INTRO!$E$39="Non endémique"," ",IF(COUNTRY_INFO!C14=0," ",COUNTRY_INFO!C14)) -> Acurenam | D14: =IF(INTRO!$E$39="Non endémique",0,IF(INTRO!$E$39="Endémique mais pas de CP",IF(COUNTRY_INFO!$H14=1,COUNTRY_INFO!F14+COUNTRY_INFO!G14,0),IF(COUNTRY_INFO!$H14=1,COUNTRY_INFO!F14+COUNTRY_INFO!G14,IF(COUNTRY_INFO!$I14=1,IF(COUNTRY_INFO!N14>=(COUNTRY_INFO!F14+COUNTRY_INFO!G14),COUNTRY_INFO!F14+COUNTRY_INFO!G14,COUNTRY_INFO!$N14),0)))) -> 28445 | E14: =IF(AND(INTRO!$E$39="Non endémique",INTRO!$E$37="Non endémique"),"Non requis",IF(INTRO!$E$39="Non endémique","Traiter avec DEC",COUNTRY_INFO!Q14)) -> 1 | F14: =IF(INTRO!$E$39<>"Non endémique",COUNTRY_INFO!R14,"Non requis") -> 0 | G14: =IF(COUNTRY_INFO!H14=1, IF($E14=1,IF(ALB_MBD!$J14<>" ",COUNTRY_INFO!F14+COUNTRY_INFO!G14-ALB_MBD!$J14,COUNTRY_INFO!F14+COUNTRY_INFO!G14), 0),0) -> 0 | H14: =IF(INTRO!$E$39<>"Endémique",0, IF(AND(COUNTRY_INFO!$I14=1,$F14<>0),IF(COUNTRY_INFO!N14>=(COUNTRY_INFO!F14+COUNTRY_INFO!G14),COUNTRY_INFO!F14+COUNTRY_INFO!G14,COUNTRY_INFO!$N14), 0)) -> 0 | J14: 0 | K14: 0 | L14: 0 | M14: 0 | N14: 0 | P14: 0 | Q14: 0
A15: =IF(INTRO!$E$39="Non endémique"," ",IF(COUNTRY_INFO!A15=0," ",COUNTRY_INFO!A15)) -> GUINEE EQUATORIALE | B15: =IF(INTRO!$E$39="Non endémique"," ",IF(COUNTRY_INFO!B15=0," ",COUNTRY_INFO!B15)) -> Centro Sur | C15: =IF(INTRO!$E$39="Non endémique"," ",IF(COUNTRY_INFO!C15=0," ",COUNTRY_INFO!C15)) -> Evinayong | D15: =IF(INTRO!$E$39="Non endémique",0,IF(INTRO!$E$39="Endémique mais pas de CP",IF(COUNTRY_INFO!$H15=1,COUNTRY_INFO!F15+COUNTRY_INFO!G15,0),IF(COUNTRY_INFO!$H15=1,COUNTRY_INFO!F15+COUNTRY_INFO!G15,IF(COUNTRY_INFO!$I15=1,IF(COUNTRY_INFO!N15>=(COUNTRY_INFO!F15+COUNTRY_INFO!G15),COUNTRY_INFO!F15+COUNTRY_INFO!G15,COUNTRY_INFO!$N15),0)))) -> 52224 | E15: =IF(AND(INTRO!$E$39="Non endémique",INTRO!$E$37="Non endémique"),"Non requis",IF(INTRO!$E$39="Non endémique","Traiter avec DEC",COUNTRY_INFO!Q15)) -> 1 | F15: =IF(INTRO!$E$39<>"Non endémique",COUNTRY_INFO!R15,"Non requis") -> 0 | G15: =IF(COUNTRY_INFO!H15=1, IF($E15=1,IF(ALB_MBD!$J15<>" ",COUNTRY_INFO!F15+COUNTRY_INFO!G15-ALB_MBD!$J15,COUNTRY_INFO!F15+COUNTRY_INFO!G15), 0),0) -> 0 | H15: =IF(INTRO!$E$39<>"Endémique",0, IF(AND(COUNTRY_INFO!$I15=1,$F15<>0),IF(COUNTRY_INFO!N15>=(COUNTRY_INFO!F15+COUNTRY_INFO!G15),COUNTRY_INFO!F15+COUNTRY_INFO!G15,COUNTRY_INFO!$N15), 0)) -> 0 | J15: 0 | K15: 0 | L15: 0 | M15: 0 | N15: 0 | P15: 0 | Q15: 0
A16: =IF(INTRO!$E$39="Non endémique"," ",IF(COUNTRY_INFO!A16=0," ",COUNTRY_INFO!A16)) -> GUINEE EQUATORIALE | B16: =IF(INTRO!$E$39="Non endémique"," ",IF(COUNTRY_INFO!B16=0," ",COUNTRY_INFO!B16)) -> Centro Sur | C16: =IF(INTRO!$E$39="Non endémique"," ",IF(COUNTRY_INFO!C16=0," ",COUNTRY_INFO!C16)) -> Niefang | D16: =IF(INTRO!$E$39="Non endémique",0,IF(INTRO!$E$39="Endémique mais pas de CP",IF(COUNTRY_INFO!$H16=1,COUNTRY_INFO!F16+COUNTRY_INFO!G16,0),IF(COUNTRY_INFO!$H16=1,COUNTRY_INFO!F16+COUNTRY_INFO!G16,IF(COUNTRY_INFO!$I16=1,IF(COUNTRY_INFO!N16>=(COUNTRY_INFO!F16+COUNTRY_INFO!G16),COUNTRY_INFO!F16+COUNTRY_INFO!G16,COUNTRY_INFO!$N16),0)))) -> 66905 | E16: =IF(AND(INTRO!$E$39="Non endémique",INTRO!$E$37="Non endémique"),"Non requis",IF(INTRO!$E$39="Non endémique","Traiter avec DEC",COUNTRY_INFO!Q16)) -> 1 | F16: =IF(INTRO!$E$39<>"Non endémique",COUNTRY_INFO!R16,"Non requis") -> 0 | G16: =IF(COUNTRY_INFO!H16=1, IF($E16=1,IF(ALB_MBD!$J16<>" ",COUNTRY_INFO!F16+COUNTRY_INFO!G16-ALB_MBD!$J16,COUNTRY_INFO!F16+COUNTRY_INFO!G16), 0),0) -> 0 | H16: =IF(INTRO!$E$39<>"Endémique",0, IF(AND(COUNTRY_INFO!$I16=1,$F16<>0),IF(COUNTRY_INFO!N16>=(COUNTRY_INFO!F16+COUNTRY_INFO!G16),COUNTRY_INFO!F16+COUNTRY_INFO!G16,COUNTRY_INFO!$N16), 0)) -> 0 | J16: 0 | K16: 0 | L16: 0 | M16: 0 | N16: 0 | P16: 0 | Q16: 0
A17: =IF(INTRO!$E$39="Non endémique"," ",IF(COUNTRY_INFO!A17=0," ",COUNTRY_INFO!A17)) -> GUINEE EQUATORIALE | B17: =IF(INTRO!$E$39="Non endémique"," ",IF(COUNTRY_INFO!B17=0," ",COUNTRY_INFO!B17)) -> Kientem | C17: =IF(INTRO!$E$39="Non endémique"," ",IF(COUNTRY_INFO!C17=0," ",COUNTRY_INFO!C17)) -> Ebebiyin | D17: =IF(INTRO!$E$39="Non endémique",0,IF(INTRO!$E$39="Endémique mais pas de CP",IF(COUNTRY_INFO!$H17=1,COUNTRY_INFO!F17+COUNTRY_INFO!G17,0),IF(COUNTRY_INFO!$H17=1,COUNTRY_INFO!F17+COUNTRY_INFO!G17,IF(COUNTRY_INFO!$I17=1,IF(COUNTRY_INFO!N17>=(COUNTRY_INFO!F17+COUNTRY_INFO!G17),COUNTRY_INFO!F17+COUNTRY_INFO!G17,COUNTRY_INFO!$N17),0)))) -> 111417 | E17: =IF(AND(INTRO!$E$39="Non endémique",INTRO!$E$37="Non endémique"),"Non requis",IF(INTRO!$E$39="Non endémique","Traiter avec DEC",COUNTRY_INFO!Q17)) -> 1 | F17: =IF(INTRO!$E$39<>"Non endémique",COUNTRY_INFO!R17,"Non requis") -> 0 | G17: =IF(COUNTRY_INFO!H17=1, IF($E17=1,IF(ALB_MBD!$J17<>" ",COUNTRY_INFO!F17+COUNTRY_INFO!G17-ALB_MBD!$J17,COUNTRY_INFO!F17+COUNTRY_INFO!G17), 0),0) -> 0 | H17: =IF(INTRO!$E$39<>"Endémique",0, IF(AND(COUNTRY_INFO!$I17=1,$F17<>0),IF(COUNTRY_INFO!N17>=(COUNTRY_INFO!F17+COUNTRY_INFO!G17),COUNTRY_INFO!F17+COUNTRY_INFO!G17,COUNTRY_INFO!$N17), 0)) -> 0 | J17: 0 | K17: 0 | L17: 0 | M17: 0 | N17: 0 | P17: 0 | Q17: 0
A18: =IF(INTRO!$E$39="Non endémique"," ",IF(COUNTRY_INFO!A18=0," ",COUNTRY_INFO!A18)) -> GUINEE EQUATORIALE | B18: =IF(INTRO!$E$39="Non endémique"," ",IF(COUNTRY_INFO!B18=0," ",COUNTRY_INFO!B18)) -> Kientem | C18: =IF(INTRO!$E$39="Non endémique"," ",IF(COUNTRY_INFO!C18=0," ",COUNTRY_INFO!C18)) -> Micomiseng | D18: =IF(INTRO!$E$39="Non endémique",0,IF(INTRO!$E$39="Endémique mais pas de CP",IF(COUNTRY_INFO!$H18=1,COUNTRY_INFO!F18+COUNTRY_INFO!G18,0),IF(COUNTRY_INFO!$H18=1,COUNTRY_INFO!F18+COUNTRY_INFO!G18,IF(COUNTRY_INFO!$I18=1,IF(COUNTRY_INFO!N18>=(COUNTRY_INFO!F18+COUNTRY_INFO!G18),COUNTRY_INFO!F18+COUNTRY_INFO!G18,COUNTRY_INFO!$N18),0)))) -> 73255 | E18: =IF(AND(INTRO!$E$39="Non endémique",INTRO!$E$37="Non endémique"),"Non requis",IF(INTRO!$E$39="Non endémique","Traiter avec DEC",COUNTRY_INFO!Q18)) -> 1 | F18: =IF(INTRO!$E$39<>"Non endémique",COUNTRY_INFO!R18,"Non requis") -> 0 | G18: =IF(COUNTRY_INFO!H18=1, IF($E18=1,IF(ALB_MBD!$J18<>" ",COUNTRY_INFO!F18+COUNTRY_INFO!G18-ALB_MBD!$J18,COUNTRY_INFO!F18+COUNTRY_INFO!G18), 0),0) -> 0 | H18: =IF(INTRO!$E$39<>"Endémique",0, IF(AND(COUNTRY_INFO!$I18=1,$F18<>0),IF(COUNTRY_INFO!N18>=(COUNTRY_INFO!F18+COUNTRY_INFO!G18),COUNTRY_INFO!F18+COUNTRY_INFO!G18,COUNTRY_INFO!$N18), 0)) -> 0 | J18: 0 | K18: 0 | L18: 0 | M18: 0 | N18: 0 | P18: 0 | Q18: 0
A19: =IF(INTRO!$E$39="Non endémique"," ",IF(COUNTRY_INFO!A19=0," ",COUNTRY_INFO!A19)) -> GUINEE EQUATORIALE | B19: =IF(INTRO!$E$39="Non endémique"," ",IF(COUNTRY_INFO!B19=0," ",COUNTRY_INFO!B19)) -> Kientem | C19: =IF(INTRO!$E$39="Non endémique"," ",IF(COUNTRY_INFO!C19=0," ",COUNTRY_INFO!C19)) -> Nsoknsomo | D19: =IF(INTRO!$E$39="Non endémique",0,IF(INTRO!$E$39="Endémique mais pas de CP",IF(COUNTRY_INFO!$H19=1,COUNTRY_INFO!F19+COUNTRY_INFO!G19,0),IF(COUNTRY_INFO!$H19=1,COUNTRY_INFO!F19+COUNTRY_INFO!G19,IF(COUNTRY_INFO!$I19=1,IF(COUNTRY_INFO!N19>=(COUNTRY_INFO!F19+COUNTRY_INFO!G19),COUNTRY_INFO!F19+COUNTRY_INFO!G19,COUNTRY_INFO!$N19),0)))) -> 42233 | E19: =IF(AND(INTRO!$E$39="Non endémique",INTRO!$E$37="Non endémique"),"Non requis",IF(INTRO!$E$39="Non endémique","Traiter avec DEC",COUNTRY_INFO!Q19)) -> 1 | F19: =IF(INTRO!$E$39<>"Non endémique",COUNTRY_INFO!R19,"Non requis") -> 0 | G19: =IF(COUNTRY_INFO!H19=1, IF($E19=1,IF(ALB_MBD!$J19<>" ",COUNTRY_INFO!F19+COUNTRY_INFO!G19-ALB_MBD!$J19,COUNTRY_INFO!F19+COUNTRY_INFO!G19), 0),0) -> 0 | H19: =IF(INTRO!$E$39<>"Endémique",0, IF(AND(COUNTRY_INFO!$I19=1,$F19<>0),IF(COUNTRY_INFO!N19>=(COUNTRY_INFO!F19+COUNTRY_INFO!G19),COUNTRY_INFO!F19+COUNTRY_INFO!G19,COUNTRY_INFO!$N19), 0)) -> 0 | J19: 0 | K19: 0 | L19: 0 | M19: 0 | N19: 0 | P19: 0 | Q19: 0
A20: =IF(INTRO!$E$39="Non endémique"," ",IF(COUNTRY_INFO!A20=0," ",COUNTRY_INFO!A20)) -> GUINEE EQUATORIALE | B20: =IF(INTRO!$E$39="Non endémique"," ",IF(COUNTRY_INFO!B20=0," ",COUNTRY_INFO!B20)) -> Litoral | C20: =IF(INTRO!$E$39="Non endémique"," ",IF(COUNTRY_INFO!C20=0," ",COUNTRY_INFO!C20)) -> Bata | D20: =IF(INTRO!$E$39="Non endémique",0,IF(INTRO!$E$39="Endémique mais pas de CP",IF(COUNTRY_INFO!$H20=1,COUNTRY_INFO!F20+COUNTRY_INFO!G20,0),IF(COUNTRY_INFO!$H20=1,COUNTRY_INFO!F20+COUNTRY_INFO!G20,IF(COUNTRY_INFO!$I20=1,IF(COUNTRY_INFO!N20>=(COUNTRY_INFO!F20+COUNTRY_INFO!G20),COUNTRY_INFO!F20+COUNTRY_INFO!G20,COUNTRY_INFO!$N20),0)))) -> 174635 | E20: =IF(AND(INTRO!$E$39="Non endémique",INTRO!$E$37="Non endémique"),"Non requis",IF(INTRO!$E$39="Non endémique","Traiter avec DEC",COUNTRY_INFO!Q20)) -> 1 | F20: =IF(INTRO!$E$39<>"Non endémique",COUNTRY_INFO!R20,"Non requis") -> 0 | G20: =IF(COUNTRY_INFO!H20=1, IF($E20=1,IF(ALB_MBD!$J20<>" ",COUNTRY_INFO!F20+COUNTRY_INFO!G20-ALB_MBD!$J20,COUNTRY_INFO!F20+COUNTRY_INFO!G20), 0),0) -> 0 | H20: =IF(INTRO!$E$39<>"Endémique",0, IF(AND(COUNTRY_INFO!$I20=1,$F20<>0),IF(COUNTRY_INFO!N20>=(COUNTRY_INFO!F20+COUNTRY_INFO!G20),COUNTRY_INFO!F20+COUNTRY_INFO!G20,COUNTRY_INFO!$N20), 0)) -> 0 | J20: 0 | K20: 0 | L20: 0 | M20: 0 | N20: 0 | P20: 0 | Q20: 0
A21: =IF(INTRO!$E$39="Non endémique"," ",IF(COUNTRY_INFO!A21=0," ",COUNTRY_INFO!A21)) -> GUINEE EQUATORIALE | B21: =IF(INTRO!$E$39="Non endémique"," ",IF(COUNTRY_INFO!B21=0," ",COUNTRY_INFO!B21)) -> Litoral | C21: =IF(INTRO!$E$39="Non endémique"," ",IF(COUNTRY_INFO!C21=0," ",COUNTRY_INFO!C21)) -> Kogo | D21: =IF(INTRO!$E$39="Non endémique",0,IF(INTRO!$E$39="Endémique mais pas de CP",IF(COUNTRY_INFO!$H21=1,COUNTRY_INFO!F21+COUNTRY_INFO!G21,0),IF(COUNTRY_INFO!$H21=1,COUNTRY_INFO!F21+COUNTRY_INFO!G21,IF(COUNTRY_INFO!$I21=1,IF(COUNTRY_INFO!N21>=(COUNTRY_INFO!F21+COUNTRY_INFO!G21),COUNTRY_INFO!F21+COUNTRY_INFO!G21,COUNTRY_INFO!$N21),0)))) -> 35724 | E21: =IF(AND(INTRO!$E$39="Non endémique",INTRO!$E$37="Non endémique"),"Non requis",IF(INTRO!$E$39="Non endémique","Traiter avec DEC",COUNTRY_INFO!Q21)) -> 1 | F21: =IF(INTRO!$E$39<>"Non endémique",COUNTRY_INFO!R21,"Non requis") -> 0 | G21: =IF(COUNTRY_INFO!H21=1, IF($E21=1,IF(ALB_MBD!$J21<>" ",COUNTRY_INFO!F21+COUNTRY_INFO!G21-ALB_MBD!$J21,COUNTRY_INFO!F21+COUNTRY_INFO!G21), 0),0) -> 0 | H21: =IF(INTRO!$E$39<>"Endémique",0, IF(AND(COUNTRY_INFO!$I21=1,$F21<>0),IF(COUNTRY_INFO!N21>=(COUNTRY_INFO!F21+COUNTRY_INFO!G21),COUNTRY_INFO!F21+COUNTRY_INFO!G21,COUNTRY_INFO!$N21), 0)) -> 0 | J21: 0 | K21: 0 | L21: 0 | M21: 0 | N21: 0 | P21: 0 | Q21: 0
A22: =IF(INTRO!$E$39="Non endémique"," ",IF(COUNTRY_INFO!A22=0," ",COUNTRY_INFO!A22)) -> GUINEE EQUATORIALE | B22: =IF(INTRO!$E$39="Non endémique"," ",IF(COUNTRY_INFO!B22=0," ",COUNTRY_INFO!B22)) -> Litoral | C22: =IF(INTRO!$E$39="Non endémique"," ",IF(COUNTRY_INFO!C22=0," ",COUNTRY_INFO!C22)) -> Mbini | D22: =IF(INTRO!$E$39="Non endémique",0,IF(INTRO!$E$39="Endémique mais pas de CP",IF(COUNTRY_INFO!$H22=1,COUNTRY_INFO!F22+COUNTRY_INFO!G22,0),IF(COUNTRY_INFO!$H22=1,COUNTRY_INFO!F22+COUNTRY_INFO!G22,IF(COUNTRY_INFO!$I22=1,IF(COUNTRY_INFO!N22>=(COUNTRY_INFO!F22+COUNTRY_INFO!G22),COUNTRY_INFO!F22+COUNTRY_INFO!G22,COUNTRY_INFO!$N22),0)))) -> 34322 | E22: =IF(AND(INTRO!$E$39="Non endémique",INTRO!$E$37="Non endémique"),"Non requis",IF(INTRO!$E$39="Non endémique","Traiter avec DEC",COUNTRY_INFO!Q22)) -> 1 | F22: =IF(INTRO!$E$39<>"Non endémique",COUNTRY_INFO!R22,"Non requis") -> 0 | G22: =IF(COUNTRY_INFO!H22=1, IF($E22=1,IF(ALB_MBD!$J22<>" ",COUNTRY_INFO!F22+COUNTRY_INFO!G22-ALB_MBD!$J22,COUNTRY_INFO!F22+COUNTRY_INFO!G22), 0),0) -> 0 | H22: =IF(INTRO!$E$39<>"Endémique",0, IF(AND(COUNTRY_INFO!$I22=1,$F22<>0),IF(COUNTRY_INFO!N22>=(COUNTRY_INFO!F22+COUNTRY_INFO!G22),COUNTRY_INFO!F22+COUNTRY_INFO!G22,COUNTRY_INFO!$N22), 0)) -> 0 | J22: 0 | K22: 0 | L22: 0 | M22: 0 | N22: 0 | P22: 0 | Q22: 0
A23: =IF(INTRO!$E$39="Non endémique"," ",IF(COUNTRY_INFO!A23=0," ",COUNTRY_INFO!A23)) -> GUINEE EQUATORIALE | B23: =IF(INTRO!$E$39="Non endémique"," ",IF(COUNTRY_INFO!B23=0," ",COUNTRY_INFO!B23)) -> Welenzas | C23: =IF(INTRO!$E$39="Non endémique"," ",IF(COUNTRY_INFO!C23=0," ",COUNTRY_INFO!C23)) -> Akonibe | D23: =IF(INTRO!$E$39="Non endémique",0,IF(INTRO!$E$39="Endémique mais pas de CP",IF(COUNTRY_INFO!$H23=1,COUNTRY_INFO!F23+COUNTRY_INFO!G23,0),IF(COUNTRY_INFO!$H23=1,COUNTRY_INFO!F23+COUNTRY_INFO!G23,IF(COUNTRY_INFO!$I23=1,IF(COUNTRY_INFO!N23>=(COUNTRY_INFO!F23+COUNTRY_INFO!G23),COUNTRY_INFO!F23+COUNTRY_INFO!G23,COUNTRY_INFO!$N23),0)))) -> 22171 | E23: =IF(AND(INTRO!$E$39="Non endémique",INTRO!$E$37="Non endémique"),"Non requis",IF(INTRO!$E$39="Non endémique","Traiter avec DEC",COUNTRY_INFO!Q23)) -> 1 | F23: =IF(INTRO!$E$39<>"Non endémique",COUNTRY_INFO!R23,"Non requis") -> 0 | G23: =IF(COUNTRY_INFO!H23=1, IF($E23=1,IF(ALB_MBD!$J23<>" ",COUNTRY_INFO!F23+COUNTRY_INFO!G23-ALB_MBD!$J23,COUNTRY_INFO!F23+COUNTRY_INFO!G23), 0),0) -> 0 | H23: =IF(INTRO!$E$39<>"Endémique",0, IF(AND(COUNTRY_INFO!$I23=1,$F23<>0),IF(COUNTRY_INFO!N23>=(COUNTRY_INFO!F23+COUNTRY_INFO!G23),COUNTRY_INFO!F23+COUNTRY_INFO!G23,COUNTRY_INFO!$N23), 0)) -> 0 | J23: 0 | K23: 0 | L23: 0 | M23: 0 | N23: 0 | P23: 0 | Q23: 0
A24: =IF(INTRO!$E$39="Non endémique"," ",IF(COUNTRY_INFO!A24=0," ",COUNTRY_INFO!A24)) -> GUINEE EQUATORIALE | B24: =IF(INTRO!$E$39="Non endémique"," ",IF(COUNTRY_INFO!B24=0," ",COUNTRY_INFO!B24)) -> Welenzas | C24: =IF(INTRO!$E$39="Non endémique"," ",IF(COUNTRY_INFO!C24=0," ",COUNTRY_INFO!C24)) -> Anisok | D24: =IF(INTRO!$E$39="Non endémique",0,IF(INTRO!$E$39="Endémique mais pas de CP",IF(COUNTRY_INFO!$H24=1,COUNTRY_INFO!F24+COUNTRY_INFO!G24,0),IF(COUNTRY_INFO!$H24=1,COUNTRY_INFO!F24+COUNTRY_INFO!G24,IF(COUNTRY_INFO!$I24=1,IF(COUNTRY_INFO!N24>=(COUNTRY_INFO!F24+COUNTRY_INFO!G24),COUNTRY_INFO!F24+COUNTRY_INFO!G24,COUNTRY_INFO!$N24),0)))) -> 55303 | E24: =IF(AND(INTRO!$E$39="Non endémique",INTRO!$E$37="Non endémique"),"Non requis",IF(INTRO!$E$39="Non endémique","Traiter avec DEC",COUNTRY_INFO!Q24)) -> 1 | F24: =IF(INTRO!$E$39<>"Non endémique",COUNTRY_INFO!R24,"Non requis") -> 0 | G24: =IF(COUNTRY_INFO!H24=1, IF($E24=1,IF(ALB_MBD!$J24<>" ",COUNTRY_INFO!F24+COUNTRY_INFO!G24-ALB_MBD!$J24,COUNTRY_INFO!F24+COUNTRY_INFO!G24), 0),0) -> 0 | H24: =IF(INTRO!$E$39<>"Endémique",0, IF(AND(COUNTRY_INFO!$I24=1,$F24<>0),IF(COUNTRY_INFO!N24>=(COUNTRY_INFO!F24+COUNTRY_INFO!G24),COUNTRY_INFO!F24+COUNTRY_INFO!G24,COUNTRY_INFO!$N24), 0)) -> 0 | J24: 0 | K24: 0 | L24: 0 | M24: 0 | N24: 0 | P24: 0 | Q24: 0
A25: =IF(INTRO!$E$39="Non endémique"," ",IF(COUNTRY_INFO!A25=0," ",COUNTRY_INFO!A25)) -> GUINEE EQUATORIALE | B25: =IF(INTRO!$E$39="Non endémique"," ",IF(COUNTRY_INFO!B25=0," ",COUNTRY_INFO!B25)) -> Welenzas | C25: =IF(INTRO!$E$39="Non endémique"," ",IF(COUNTRY_INFO!C25=0," ",COUNTRY_INFO!C25)) -> Mongomo | D25: =IF(INTRO!$E$39="Non endémique",0,IF(INTRO!$E$39="Endémique mais pas de CP",IF(COUNTRY_INFO!$H25=1,COUNTRY_INFO!F25+COUNTRY_INFO!G25,0),IF(COUNTRY_INFO!$H25=1,COUNTRY_INFO!F25+COUNTRY_INFO!G25,IF(COUNTRY_INFO!$I25=1,IF(COUNTRY_INFO!N25>=(COUNTRY_INFO!F25+COUNTRY_INFO!G25),COUNTRY_INFO!F25+COUNTRY_INFO!G25,COUNTRY_INFO!$N25),0)))) -> 58100 | E25: =IF(AND(INTRO!$E$39="Non endémique",INTRO!$E$37="Non endémique"),"Non requis",IF(INTRO!$E$39="Non endémique","Traiter avec DEC",COUNTRY_INFO!Q25)) -> 1 | F25: =IF(INTRO!$E$39<>"Non endémique",COUNTRY_INFO!R25,"Non requis") -> 0 | G25: =IF(COUNTRY_INFO!H25=1, IF($E25=1,IF(ALB_MBD!$J25<>" ",COUNTRY_INFO!F25+COUNTRY_INFO!G25-ALB_MBD!$J25,COUNTRY_INFO!F25+COUNTRY_INFO!G25), 0),0) -> 0 | H25: =IF(INTRO!$E$39<>"Endémique",0, IF(AND(COUNTRY_INFO!$I25=1,$F25<>0),IF(COUNTRY_INFO!N25>=(COUNTRY_INFO!F25+COUNTRY_INFO!G25),COUNTRY_INFO!F25+COUNTRY_INFO!G25,COUNTRY_INFO!$N25), 0)) -> 0 | J25: 0 | K25: 0 | L25: 0 | M25: 0 | N25: 0 | P25: 0 | Q25: 0
A26: =IF(INTRO!$E$39="Non endémique"," ",IF(COUNTRY_INFO!A26=0," ",COUNTRY_INFO!A26)) -> GUINEE EQUATORIALE | B26: =IF(INTRO!$E$39="Non endémique"," ",IF(COUNTRY_INFO!B26=0," ",COUNTRY_INFO!B26)) -> Welenzas | C26: =IF(INTRO!$E$39="Non endémique"," ",IF(COUNTRY_INFO!C26=0," ",COUNTRY_INFO!C26)) -> Nsork | D26: =IF(INTRO!$E$39="Non endémique",0,IF(INTRO!$E$39="Endémique mais pas de CP",IF(COUNTRY_INFO!$H26=1,COUNTRY_INFO!F26+COUNTRY_INFO!G26,0),IF(COUNTRY_INFO!$H26=1,COUNTRY_INFO!F26+COUNTRY_INFO!G26,IF(COUNTRY_INFO!$I26=1,IF(COUNTRY_INFO!N26>=(COUNTRY_INFO!F26+COUNTRY_INFO!G26),COUNTRY_INFO!F26+COUNTRY_INFO!G26,COUNTRY_INFO!$N26),0)))) -> 17179 | E26: =IF(AND(INTRO!$E$39="Non endémique",INTRO!$E$37="Non endémique"),"Non requis",IF(INTRO!$E$39="Non endémique","Traiter avec DEC",COUNTRY_INFO!Q26)) -> 1 | F26: =IF(INTRO!$E$39<>"Non endémique",COUNTRY_INFO!R26,"Non requis") -> 0 | G26: =IF(COUNTRY_INFO!H26=1, IF($E26=1,IF(ALB_MBD!$J26<>" ",COUNTRY_INFO!F26+COUNTRY_INFO!G26-ALB_MBD!$J26,COUNTRY_INFO!F26+COUNTRY_INFO!G26), 0),0) -> 0 | H26: =IF(INTRO!$E$39<>"Endémique",0, IF(AND(COUNTRY_INFO!$I26=1,$F26<>0),IF(COUNTRY_INFO!N26>=(COUNTRY_INFO!F26+COUNTRY_INFO!G26),COUNTRY_INFO!F26+COUNTRY_INFO!G26,COUNTRY_INFO!$N26), 0)) -> 0 | J26: 0 | K26: 0 | L26: 0 | M26: 0 | N26: 0 | P26: 0 | Q26: 0

Sheet SUMMARY
C1: Cette version sera utilisée par les pays endémiques à la Loase
B2: Formulaire de demande commune de médicaments pour CP v.3.1 (L)
B4: Ce formulaire constitue une demande officielle du Gouvernement à l'OMS pour l'approvisionnement des médicaments mentionnés ci-dessus. Ce formulaire peut-être soumis à n'importe quel moment, avant le 15 août de l'année en cours, pour une livraison de médicaments au courant de l'année suivante, mais au moins 6-8 mois avant l’intervention planifiée afin de laisser le temps nécessaire pour réviser et approuver la demande, placer la commande, élaborer les médicaments et les expédier vers les pays.
B6: Pays | C6: =IF(INTRO!$E$33<>0,INTRO!$E$33," ") -> GUINEE EQUATORIALE | G6: Année | H6: =IF(INTRO!$E$35<>0,INTRO!$E$35," ") -> 2020
B8: Informations concernant les médicaments CP demandés à l’OMS
B10: Le médicament | C10: Nombre de comprimés | G10: Nombre total de flacons
C11: Requis | D11: En stock | E11: En cours de demande | F11: Demandés | G11: Requis | H11: Demandés
B12: Albendazole pour FL | C12: 1596154 | D12: 0 | F12: =IF(C12>(D12+E12),C12-D12-E12, 0) -> 1596154 | G12: =IF($C12=0,0,IF($B12="Albendazole pour FL",IF($C12=(ALB_MBD!$U$4+ALB_MBD!$V$4),ALB_MBD!$W$4,ROUNDUP($C12/200,0)),IF($B12="Albendazole pour STH (EAS)",IF($C12=ALB_MBD!$N$4,ALB_MBD!$Z$4,ROUNDUP($C12/200,0)),IF($B12="Mebendazole (EAS)",IF($C12=ALB_MBD!$R$4,ALB_MBD!$AC$4,ROUNDUP($C12/150,0)),IF($B12="Praziquantel (EAS)",IF($C12=PZQ!$O$4,PZQ!$R$4,ROUNDUP($C12/1000,0)),IF($B12="Ivermectine",IF($C12=IVM!$N$4,IVM!$Q$4,$C12/500+0.49),0)))))) -> 7989 | H12: =IF($F12=0,0,IF(OR($B12="Albendazole pour FL",$B12="Albendazole pour STH (EAS)"),$G12-ROUNDUP(($E12+$D12)/200,0),IF($B12="Ivermectine",$G12-ROUNDUP(($E12+$D12)/500,0),IF($B12="Mebendazole (EAS)",$G12-ROUNDUP(($E12+$D12)/150,0),$G12-ROUNDUP(($E12+$D12)/1000,0))))) -> 7989
B13: Albendazole pour STH (EAS) | C13: 92750 | D13: 235668 | F13: 0 | G13: =IF($C13=0,0,IF($B13="Albendazole pour FL",IF($C13=(ALB_MBD!$U$4+ALB_MBD!$V$4),ALB_MBD!$W$4,ROUNDUP($C13/200,0)),IF($B13="Albendazole pour STH (EAS)",IF($C13=ALB_MBD!$N$4,ALB_MBD!$Z$4,ROUNDUP($C13/200,0)),IF($B13="Mebendazole (EAS)",IF($C13=ALB_MBD!$R$4,ALB_MBD!$AC$4,ROUNDUP($C13/150,0)),IF($B13="Praziquantel (EAS)",IF($C13=PZQ!$O$4,PZQ!$R$4,ROUNDUP($C13/1000,0)),IF($B13="Ivermectine",IF($C13=IVM!$N$4,IVM!$Q$4,$C13/500+0.49),0)))))) -> 465 | H13: 0
B14: Praziquantel (EAS) | C14: 0 | D14: 0 | F14: 0 | G14: =IF($C14=0,0,IF($B14="Albendazole pour FL",IF($C14=(ALB_MBD!$U$4+ALB_MBD!$V$4),ALB_MBD!$W$4,ROUNDUP($C14/200,0)),IF($B14="Albendazole pour STH (EAS)",IF($C14=ALB_MBD!$N$4,ALB_MBD!$Z$4,ROUNDUP($C14/200,0)),IF($B14="Mebendazole (EAS)",IF($C14=ALB_MBD!$R$4,ALB_MBD!$AC$4,ROUNDUP($C14/150,0)),IF($B14="Praziquantel (EAS)",IF($C14=PZQ!$O$4,PZQ!$R$4,ROUNDUP($C14/1000,0)),IF($B14="Ivermectine",IF($C14=IVM!$N$4,IVM!$Q$4,$C14/500+0.49),0)))))) -> 0 | H14: 0
B15: Ivermectine | C15: 0 | D15: 0 | F15: 0 | G15: =IF($C15=0,0,IF($B15="Albendazole pour FL",IF($C15=(ALB_MBD!$U$4+ALB_MBD!$V$4),ALB_MBD!$W$4,ROUNDUP($C15/200,0)),IF($B15="Albendazole pour STH (EAS)",IF($C15=ALB_MBD!$N$4,ALB_MBD!$Z$4,ROUNDUP($C15/200,0)),IF($B15="Mebendazole (EAS)",IF($C15=ALB_MBD!$R$4,ALB_MBD!$AC$4,ROUNDUP($C15/150,0)),IF($B15="Praziquantel (EAS)",IF($C15=PZQ!$O$4,PZQ!$R$4,ROUNDUP($C15/1000,0)),IF($B15="Ivermectine",IF($C15=IVM!$N$4,IVM!$Q$4,$C15/500+0.49),0)))))) -> 0 | H15: 0
C16: 0 | D16: 0 | F16: 0 | G16: =IF($C16=0,0,IF($B16="Albendazole pour FL",IF($C16=(ALB_MBD!$U$4+ALB_MBD!$V$4),ALB_MBD!$W$4,ROUNDUP($C16/200,0)),IF($B16="Albendazole pour STH (EAS)",IF($C16=ALB_MBD!$N$4,ALB_MBD!$Z$4,ROUNDUP($C16/200,0)),IF($B16="Mebendazole (EAS)",IF($C16=ALB_MBD!$R$4,ALB_MBD!$AC$4,ROUNDUP($C16/150,0)),IF($B16="Praziquantel (EAS)",IF($C16=PZQ!$O$4,PZQ!$R$4,ROUNDUP($C16/1000,0)),IF($B16="Ivermectine",IF($C16=IVM!$N$4,IVM!$Q$4,$C16/500+0.49),0)))))) -> 0 | H16: 0
C17: 0 | D17: 0 | F17: 0 | G17: =IF($C17=0,0,IF($B17="Albendazole pour FL",IF($C17=(ALB_MBD!$U$4+ALB_MBD!$V$4),ALB_MBD!$W$4,ROUNDUP($C17/200,0)),IF($B17="Albendazole pour STH (EAS)",IF($C17=ALB_MBD!$N$4,ALB_MBD!$Z$4,ROUNDUP($C17/200,0)),IF($B17="Mebendazole (EAS)",IF($C17=ALB_MBD!$R$4,ALB_MBD!$AC$4,ROUNDUP($C17/150,0)),IF($B17="Praziquantel (EAS)",IF($C17=PZQ!$O$4,PZQ!$R$4,ROUNDUP($C17/1000,0)),IF($B17="Ivermectine",IF($C17=IVM!$N$4,IVM!$Q$4,$C17/500+0.49),0)))))) -> 0 | H17: 0
B19: Nombre de personnes devant être traitées avec le médicament donné
B21: Veuillez sélectionner la maladie | G21: 1er tour | H21: 2ème tour
B22: Filariose lymphatique | C22: Ces chiffres sont estimés uniquement pour les goupes d'âge ciblés pour le traitement avec les médicaments donnés, dans les régions où le traitement de maladies spécifiques est requis | G22: 806214
B23: Onchocercose | G23: 0 | H23: 0
B24: Schistosomiase | G24: 0
B25: Géohelminthiases | G25: 49356 | H25: 256076
B29: Informations sur les interventions CP planifiées
B31: Le médicament | C31: Veuillez sélectionner une date (mois et année) pour la 1ère tournée de CP | E31: Veuillez sélectionner une date (mois et année) pour la 2ème tournée de CP | G31: Date à laquelle les médicaments devraient atteindre l’entrepôt national
B32: Albendazole pour FL | C32: Mai | D32: 2020 | E32: Novembre | F32: 2020 | G32: Mars | H32: 2020
B33: Albendazole pour STH (EAS) | C33: Mai | D33: 2020 | E33: Novembre | F33: 2020 | G33: Mars | H33: 2020
B34: Praziquantel (EAS)
B35: Ivermectine | C35: Mai | D35: 2020 | E35: Novembre | F35: 2020 | G35: Mars | H35: 2020
B39: Informations sur les médicaments de chimiothérapie préventive pour le traitement de populations non ciblées par la donation en cours via l’OMS
B41: Le médicament | C41: Groupe d'âge | D41: # de personnes | E41: # de comprimés | F41: Source | H41: Statut
B53: Récapitulatif - Checklist
B54: Submission
B55: Que faut-il soumettre ?
B56: L'approvisionnement des médicaments demandés doit être basé sur des données épidémiologiques à jour, des plans d'utilisation des médicaments spécifiques et sur la capacité de mise en oeuvre. La liste suivante permet d'assurer que tous les formulaires et toutes les informations sont fournis à l'OMS (en format électronique).
B57: Formulaire de demande commune de médicaments pour chimioprévention
B58: Formulaire de rapport commun
B59: Déclaration des données épidémiologiques pour la CP
B61: Disponibilité de financement pour la mise en oeuvre de tournées pendant l’année pour laquelle les medicaments ont été demandés
B63: Maladies ciblées pour la mise en oeuvre | C63: # de traitements | D63: Financement assuré pour | E63: Origine | H63: Montant
B64: =B22 -> Filariose lymphatique | C64: =SUM(G22:H22) -> 806214
B65: =B23 -> Onchocercose | C65: =SUM(G23:H23) -> 0
B66: =B24 -> Schistosomiase | C66: =SUM(G24:H24) -> 0
B67: =B25 -> Géohelminthiases | C67: =SUM(G25:H25) -> 305432
B69: Qui doit remplir le formulaire ?
B70: Le Coordonnateur national MTN doit compiler toutes les informations nécessaires pour compléter le formulaire de demande. En l'absence d'un coordonnateur, les gestionnaires de programmes spécifiques devraient coordonner leurs sections respectives. Une fois finalisée, chaque demande individuelle doit être approuvée par le Ministère de la Santé.
B72: Informations concernant la (les) personne(s) ayant rempli le formulaire
B74: Titre/fonction | C74: Nom | E74: Téléphone | G74: Email | H74: Date
B75: Coordonnateur MTN/CP | C75: Rufino Nguema | E75: +240 222 270 124 | G75: rufonguema@yahoo.es | H75: 18/7/2019
B80: L’OMS recommende que tous les effets secondaires graves suspectés d’être associés à l’ingestion de médicaments de CP soient rapportés en suivant les lignes directrices nationales de pharmacovigilance. En l’absence d’un système de pharmacovigilance national, contactez le département de Contrôle des Maladies Tropicales Négligées pour être conseillé.
B81: L’OMS s’est engagée à rendre possible la donation de médicaments en fournissant gratuitement: a) albendazole, mebendazole et praziquantel à l’entrepôt national du Ministère de la Santé et b) diethylcarbamazine au port d’entrée du pays receveur.
B82: L’institution soumettant la présente requête est responsable de: a) l’organisation du déchargement des médicaments du camion, du stockage dans l’entrepôt national et de l’expédition vers les centres où aura lieu la distribution finale; b) de l’enregistrement, si nécessaire, des médicaments donnés, auprès des autorités nationales en charge; et de c) de l’information de n’importe quels changements ayant trait à leurs campagnes de traitement (par exemple le report d’une date planifiée de distribution en masse de médicaments, le remplacement d’un coordonateur MTN, etc.).
B83: J’ai pris connaissance et accepté la politique de la communication de données de l’OMS
B84: Nom et signature du Coordonnateur MTN ou du Représentant du Ministère de la Santé
B85: Date
B87: Si vous avez plus d'un destinataire final pour les médicaments de chimioprévention demandés, veuillez compléter les informations de la rubrique "Informations concernant l'envoi et le destinataire" dans la feuille de travail SHIPMENT.
B88: Veuillez envoyer le rapport national (signé et sous format électronique) au représentant de I'OMS du pays en mettant en copie:
B89: Siège de l'OMS | C89: PC_JointForms@who.int
B90: Bureau régional de l'OMS | C90: Conseiller régional MTN
B91: Mectizan donation programme | C91: Dr Yao Sodahlon, email: ysodahlon@taskforce.org
B93: Veuillez noter que votre demande sera examinée par un panel d'experts indépendants (Comité ad hoc d’évaluation conjointe). Les informations contenues dans ce formulaire, le rapport commun d'activités (ou rapport national d'activités) et le plan d'action annuel sont essentiels à l'OMS pour assurer un usage optimal des médicaments. Dans le cadre de ses activités courantes de suivi et d'évaluation, et afin d'honorer ses obligations contractuelles envers les bailleurs de fonds et autres partenaires, l'OMS et ses agents affiliés se réservent le droit d'inspecter, périodiquement, les stocks de médicaments au niveau national.

Sheet SHIPMENT
C1: Cette version sera utilisée par les pays endémiques à la Loase
B2: Formulaire de demande commune de médicaments pour CP v.3.1 (L)
B4: Pays | C4: =IF(INTRO!$E$33<>0,INTRO!$E$33," ") -> GUINEE EQUATORIALE | G4: Année | H4: =IF(INTRO!$E$35<>0,INTRO!$E$35," ") -> 2020
B6: Informations sur l'envoi et le destinataire
C8: Destinataire | F8: Destinataire final si différent du destinaire précédent
B9: Nom | C9: Ekiri Nguie, Dr Ana Bella | F9: Rufino NGUEMA ANDEME
B10: Département/Unité | F10: Ministerio de Sanidad y Bienestar Social
B11: Organisation | C11: Orgnization Mondiale de la Santé | F11: Guvernamental
B12: Téléphone | C12: +240 222 273908 | F12: 240 222 270124
B13: Fax
B14: E-mail | C14: afwcogq@who.int | F14: rufonguema@yahoo.es
B15: Adresse postale
C17: Destinataire | F17: Destinataire final si différent du destinaire précédent
B18: Nom
B19: Département/Unité
B20: Organisation
B21: Téléphone
B22: Fax
B23: E-mail
B24: Adresse postale
C26: Destinataire | F26: Destinataire final si différent du destinaire précédent
B27: Nom
B28: Département/Unité
B29: Organisation
B30: Téléphone
B31: Fax
B32: E-mail
B33: Adresse postale
B35: Information concernant les obligations légales d’importation
B37: Est le permis d'importation nécessaire?
B38: Combien de temps cela prend-il pour obtenir le permis d’importation?
B39: Avez vous besoin que certains documents soient remis en même temps que la demande de permis d’importation?
B40: Si oui, merci de bien vouloir spécifier lesquels ici
B41: Est-ce que le destinataire doit procéder au dédouanement avant que l’expédition puisse avoir lieu?
B42: Y a-t-il des informations supplémentaires qui pourraient être utiles afin d’assurer un dédouanement et une livraison rapide des médicaments dans votre pays?
B43: Si oui, merci de bien vouloir spécifier lesquels ici
B46: Remarques supplémentaires éventuelles liées à cette requête

Sheet DATA_POLICY - ES
B2: Solicitud conjunta de medicamentos seleccionados para QP v.3.1
B4: País | D4: =IF([1]INTRO!$E$33<>0,[1]INTRO!$E$33," ") ->  | G4: Año | H4: =IF([1]INTRO!$E$35<>0,[1]INTRO!$E$35," ") -> 
B7: Términos de la OMS sobre la política para compartir datos
B9: Los datos constituyen los cimientos de todas las medidas racionales de salud pública y los beneficios de compartirlos están ampliamente reconocidos, en particular en el ámbito de la ciencia y la salud pública. Siempre que sea posible, la OMS desea promover el intercambio de datos sanitarios, en particular los epidemiológicos y de vigilancia, pero sin limitarse a ellos.
B14: ="Al respecto, y sin perjuicio de lo prescrito en los documentos jurídicamente vinculantes sobre la compartición y publicación de información, al ofrecer datos a la OMS el Ministerio de Salud de " & D4 & ":" -> Al respecto, y sin perjuicio de lo prescrito en los documentos jurídicamente vinculantes sobre la compartición y publicación de información, al ofrecer datos a la OMS el Ministerio de Salud de :
B18: Confirma que todos los datos que se suministran a la OMS se han recopilado con arreglo a la legislación nacional aplicable, en particular las leyes de protección de datos destinadas a proteger el anonimato de personas identificables;
B22: ="Conviene en que la OMS tendrá derecho, a reserva en todo momento de medidas para garantizar el uso ético y protegido de los datos, y a reserva en todo momento del reconocimiento apropiado de "&D4&":" -> Conviene en que la OMS tendrá derecho, a reserva en todo momento de medidas para garantizar el uso ético y protegido de los datos, y a reserva en todo momento del reconocimiento apropiado de :
C26: a publicar los datos, desprovistos de todo elemento identificativo personal (denominados en adelante «los datos»), y a ponerlos a disposición de toda parte interesada previa petición (en la medida en que la OMS no los haya publicado, o no los haya publicado todavía) de tal modo que pueda darse a los datos un uso no comercial y sin ánimo de lucro con fines de salud pública (siempre que la OMS conserve el control de la publicación de los datos); a utilizar, recopilar, combinar, evaluar y analizar los datos y a publicar y difundir los resultados de dicho análisis junto con la labor de la OMS y de conformidad con las políticas y prácticas de la Organización.
B37: =CONCATENATE("Excepto en los casos en que la compartición y la publicación de los datos se prescriban en los instrumentos jurídicamente vinculantes (el RSI, el Reglamento de Nomenclatura de la OMS de 1967, etc.), el Ministerio de Salud de ", D4," podrá, respecto de determinados datos, manifestar que no acepta lo anterior (en su totalidad o en parte)" & " notificando a la OMS por escrito en la dirección que figura a continuación, a condición de que en dicha notificación se indiquen claramente los datos a los que se hace referencia, " & "se señalen claramente las disposiciones anteriores que no se aceptan y se expongan las razones. ") -> Excepto en los casos en que la compartición y la publicación de los datos se prescriban en los instrumentos jurídicamente vinculantes (el RSI, el Reglamento de Nomenclatura de la OMS de 1967, etc.), el Ministerio de Salud de podrá, respecto de determinados datos, manifestar que no acepta lo anterior (en su totalidad o en parte) notificando a la OMS por escrito en la dirección que figura a continuación, a condición de que en dicha notificación se indiquen claramente los datos a los que se hace referencia, se señalen claramente las disposiciones anteriores que no se aceptan y se expongan las razones.

Sheet DATA_POLICY
B2: Formulaire de demande commune de médicaments pour CP v.3.1
B4: Pays | D4: =IF(INTRO!$E$33<>0,INTRO!$E$33," ") -> GUINEE EQUATORIALE | G4: Année | H4: =IF(INTRO!$E$35<>0,INTRO!$E$35," ") -> 2020
B7: Déclaration de principe sur la communication de données par l’OMS
B9: Les données sont le fondement de toutes les mesures rationnelles de santé publique et les avantages de la communication de données, y compris pour la science et la santé publique, sont largement reconnus. L’OMS souhaite promouvoir autant que possible la communication de données sanitaires, y compris, mais pas uniquement, de données épidémiologiques et de surveillance.
B14: ="À cet égard, et sans préjudice des instruments juridiquement contraignants régissant la communication et la publication d’informations, le Ministère de la santé de " & D4 & ", en fournissant des données à l’OMS :" -> À cet égard, et sans préjudice des instruments juridiquement contraignants régissant la communication et la publication d’informations, le Ministère de la santé de GUINEE EQUATORIALE, en fournissant des données à l’OMS :
B18: confirme que toutes les données à fournir à l’OMS, ont été collectées conformément à la législation nationale applicable, y compris aux lois de protection des données visant à préserver l’anonymat des personnes identifiables ;
B23: ="convient que l’OMS aura le droit, toujours sous réserve des mesures visant à garantir l’utilisation éthique et sécurisée des données et toujours sous réserve d’une reconnaissance appropriée de la part de "&D4&":" -> convient que l’OMS aura le droit, toujours sous réserve des mesures visant à garantir l’utilisation éthique et sécurisée des données et toujours sous réserve d’une reconnaissance appropriée de la part de GUINEE EQUATORIALE:
C27: de publier les données, dépourvues de tout élément d’identification personnelle (ci-après dénommées « les données ») et de les mettre à la disposition de toute partie intéressée, sur demande (dans la mesure où elles n’ont pas, ou pas encore, été publiées par l’OMS), selon des modalités autorisant leur utilisation non commerciale et sans but lucratif à des fins de santé publique (pour autant que l’OMS garde la maîtrise de la publication des données) ; d’utiliser, de compiler, d’agréger, d’évaluer et d’analyser les données et de publier et de diffuser les résultats obtenus grâce à ces données en rapport avec des travaux de l’OMS et conformément aux politiques et pratiques de l’Organisation.
B39: =CONCATENATE("Sauf lorsque des instruments juridiquement contraignants (RSI, Règlement de Nomenclature de l’OMS, de 1967, etc.) disposent que les données doivent être communiquées et publiées, le Ministère de la santé de ", D4," peut, pour certaines données, décider de ne pas appliquer (tout ou partie des) (les) dispositions qui précèdent," & " en informant l’OMS par écrit à l’adresse suivante, à condition que cette notification précise clairement les données, " & "dont il s’agit et indique clairement lesquelles des dispositions qui précèdent ne seront pas appliquées, et pour quels motifs.") -> Sauf lorsque des instruments juridiquement contraignants (RSI, Règlement de Nomenclature de l’OMS, de 1967, etc.) disposent que les données doivent être communiquées et publiées, le Ministère de la santé de GUINEE EQUATORIALE peut, pour certaines données, décider de ne pas appliquer (tout ou partie des) (les) dispositions qui précèdent, en informant l’OMS par écrit à l’adresse suivante, à condition que cette notification précise clairement les données, dont il s’agit et indique clairement lesquelles des dispositions qui précèdent ne seront pas appliquées, et pour quels motifs.
